Workbook

Sheet Minta
A1: Megnevezés (munkafüzet 2) | B1: CPV megnevezés | C1: CPV kód | D1: Termék megnevezése | E1: Kiszerelés | F1: Darabszám
A3: 1. részajánlati kör
A4: Vegyszerek kémiai szintézisekhez | B4: Különféle szerves vegyi anyagok | C4: 2432-7000-2 | D4: Diisopropyl malonate, min. 99% | E4: 100 ml | F4: 1
A5: Vegyszerek kémiai szintézisekhez | B5: Foszfinátok, foszfonátok, foszfátok és polifoszfátok | C5: 2431-3200-3 | D5: Phosphorus pentachloride, min. 98% | E5: 1 kg | F5: 1
A6: Vegyszerek kémiai szintézisekhez | B6: Szerves vegyületek nitrogénfunkciós csoporttal | C6: 2432-4000-1 | D6: n-Butylamine, min. 99,5% | E6: 1000 ml | F6: 1
A7: Vegyszerek kémiai szintézisekhez | B7: Különféle szerves vegyi anyagok | C7: 2432-7000-2 | D7: Ethyl chloroformate, min. 97% | E7: 500 ml | F7: 1
A8: Vegyszerek kémiai szintézisekhez | B8: Különféle szerves vegyi anyagok | C8: 2432-7000-2 | D8: Benzyl chloroformate, min. 97% | E8: 500 g | F8: 1
A9: Vegyszerek kémiai szintézisekhez | B9: Különféle szerves vegyi anyagok | C9: 2432-7000-2 | D9: L-Histidine, min. 99% | E9: 100 g | F9: 1
A10: Vegyszerek kémiai szintézisekhez | B10: Különféle szerves vegyi anyagok | C10: 2432-7000-2 | D10: 1,1-Bis(methylthio)-2-nitroethylene, min. 95% | E10: 25 g | F10: 1
A11: Vegyszerek kémiai szintézisekhez | B11: Különféle szerves vegyi anyagok | C11: 2432-7000-2 | D11: 4'-Methoxyacetophenone, min. 99% | E11: 250 g | F11: 1
A12: Vegyszerek kémiai szintézisekhez | B12: Polifoszforsav | C12: 2431-1430-0 | D12: Polyphosphoric acid, min. 84% (as phosphorus pentoxide) | E12: 1 kg | F12: 1
A13: Vegyszerek kémiai szintézisekhez | B13: Különféle szerves vegyi anyagok | C13: 2432-7000-2 | D13: alpha-Ketoglutaric acid, min. 98% | E13: 100 g | F13: 1
A15: 2. részajánlati kör
A16: Laboratóriumi papíráru | B16: szűrőpapír | C16: 15994200-4 | D16: Redős kvalitatív szűrőpapír általános laboratóriumi munkához, átmérő: 125 mm | E16: 100 db/csomag | F16: 5
A17: Laboratóriumi papíráru | B17: szűrőpapír | C17: 15994200-4 | D17: Redős kvalitatív szűrőpapír általános laboratóriumi munkához, átmérő: 150 mm | E17: 100 db/csomag | F17: 5

Sheet Csapó (hidden)
A1: Megnevezés (munkafüzet 2) | B1: CPV megnevezés | C1: CPV kód | D1: Termék megnevezése | E1: Szállítók (3 db) | F1: Kiszerelés | G1: Becsült egységár (Ft) | H1: Darabszám | I1: Becsült ár (Ft)
A2: Vegyszerek kémiai szintézisekhez
A3: Vegyszerek kémiai szintézisekhez | B3: Különféle szerves vegyianyagok | C3: 24327000-2 | D3: 1,2-Dipalmitoyl-sn-glycero-3-phosphocholine | E3: Sigma-Aldrich, Avanti Polar Lipids Inc., Echelon Biosciences Inc. | F3: 250 mg | G3: 60600 | H3: 3 | I3: =G3*H3 -> 181800
A4: Vegyszerek kémiai szintézisekhez | B4: Különféle szerves vegyianyagok | C4: 24327000-2 | D4: Asolectin from soy bean | E4: Sigma-Aldrich, Avanti Polar Lipids Inc., OMNILAB-LABORZENTRUM GmbH & Co. | F4: 250 g | G4: 34200 | H4: 1 | I4: 34200
A5: Vegyszerek kémiai szintézisekhez | B5: Különféle szerves vegyianyagok | C5: 24327000-2 | D5: Soy lecithin | E5: Sigma-Aldrich, VWR, Avanti Lipids Inc., | F5: 500 g | G5: 32100 | H5: 1 | I5: 32100
A6: Vegyszerek kémiai szintézisekhez | B6: Különféle szerves vegyianyagok | C6: 24327000-2 | D6: Cholesterol | E6: Sigma-Aldrich, Steraloids Inc., Molar | F6: 25 g | G6: 95100 | H6: 1 | I6: 95100
A7: Vegyszerek kémiai szintézisekhez | B7: Különféle szerves vegyianyagok | C7: 24327000-2 | D7: Cholesteryl chloroformate | E7: Sigma-Aldrich, Santa-Cruz Biotechnology Inc., Fisher Scientific Inc. | F7: 25 g | G7: 21540 | H7: 1 | I7: 21540
A8: Vegyszerek kémiai szintézisekhez | B8: Primer etilén-polimerek | C8: 24510000-2 | D8: Poly(ethylene imine) (Mn= 1800) | E8: Sigma-Aldrich, VWR, PolySciencies | F8: 250 mL | G8: 30600 | H8: 1 | I8: 30600
A9: Vegyszerek kémiai szintézisekhez | B9: Aminok | C9: 24324100-2 | D9: Trietil-amin | E9: Sigma-Aldrich, VWR, Molar | F9: 100 mL | G9: 10320 | H9: 1 | I9: 10320
A10: Vegyszerek kémiai szintézisekhez | B10: Primer etilén-polimerek | C10: 24510000-2 | D10: Poly(ethylene glycol) (Mn = 6000) | E10: Sigma-Aldrich, VWR, Molar | F10: 1 kg | G10: 13530 | H10: 2 | I10: 27060
A11: Vegyszerek kémiai szintézisekhez | B11: Primer műanyagok | C11: 24500000-9 | D11: Poly(allylamine hydrochloride) (Mw = 17500) | E11: Sigma-Aldrich, VWR, Molar | F11: 5 g | G11: 49200 | H11: 1 | I11: 49200
A12: Vegyszerek kémiai szintézisekhez | B12: Primer sztirol-polimerek | D12: Poly(sodium 4-styrenesulfonate) (Mw = 70000) | E12: Sigma-Aldrich, VWR, Quantomix Inc. | F12: 100 g | G12: 24360 | H12: 1 | I12: 24360
A13: Vegyszerek kémiai szintézisekhez | B13: Primer etilén-polimerek | C13: 24510000-2 | D13: Poly(ethylene glycol) methyl ether thiol (Mn = 6000) | E13: Sigma-Aldrich, Alpha-Aesar, VWR | F13: 1 g | G13: 62400 | H13: 2 | I13: 124800
A14: Vegyszerek kémiai szintézisekhez | B14: Különféle szerves vegyianyagok | C14: 24327000-2 | D14: Chitosan high molecular weight | E14: Sigma-Aldrich, Acros Organic Inc., Santa-Cruz Biotechnology Inc. | F14: 50 g | G14: 16710 | H14: 1 | I14: 16710
A15: Vegyszerek kémiai szintézisekhez | B15: Primer műanyagok | C15: 24500000-9 | D15: Poly(DL-lactid-co-glycolide) (Mw = 19000, 50-50 laktid-glikold %) | E15: Acros Organic Inc, Sigma-Aldrich, VWR | F15: 5 g | G15: 61000 | H15: 1 | I15: 61000
J16: =SUM(I3:I15) -> 708790
A19: Oldószerek kémiai szintézisekhez
A20: Oldószerek kémiai szintézisekhez | B20: Szénhidrogének egyéb halogén származékai | C20: 24321300-3 | D20: Diklór-metán | E20: Sigma-Aldrich, VWR, Molar | F20: 1 L | G20: 36900 | H20: 1 | I20: =G20*H20 -> 36900
A21: Oldószerek kémiai szintézisekhez | B21: Aldehid, keton, szerves peroxidok és éterek | C21: 24326000-5 | D21: Dietil-éter | E21: Sigma-Aldrich, VWR, Molar | F21: 1 L | G21: 28260 | H21: 1 | I21: =G21*H21 -> 28260
A22: Oldószerek kémiai szintézisekhez | B22: Metanol. | C22: 24322210-2 | D22: Metanol | E22: Molar, VWR, Sigma-Aldrich | F22: 1 L | G22: 950 | H22: 1 | I22: =G22*H22 -> 950
A23: Oldószerek kémiai szintézisekhez | B23: Különféle szerves vegyianyagok | C23: 24327000-2 | D23: Kloroform | E23: Molar, VWR, Sigma-Aldrich | F23: 1 L | G23: 1890 | H23: 2 | I23: =G23*H23 -> 3780
J24: =SUM(I20:I23) -> 69890
A27: Kromatográfiás oszlopok, töltetek
A28: Kromatográfiás oszlopok, töltetek | B28: Laboratóriumi, optikai és precíziós felszerelések | C28: 38000000-5 | D28: Sephadex ® G50-fine | E28: Sigma-Aldrich, GE Healthcare Science, Santa-Cruz Biotechnology Inc. | F28: 50 g | G28: 85000 | H28: 1 | I28: =G28*H28 -> 85000
J29: =SUM(I28) -> 85000
A32: Laboratóriumi műanyag áru
A33: Laboratóriumi műanyag áru | B33: Laboratóriumi, optikai és precíziós felszerelések | C33: 38000000-5 | D33: Millex-HA szűrő 0.45 um pórusú (SLHA025NB kódszám) | E33: Sigma-Aldrich, Millipore Inc., Biocompare Inc., | F33: 250 db | G33: 90000 | H33: 1 | I33: =G33*H33 -> 90000
A34: Laboratóriumi műanyag áru | B34: Laboratóriumi, optikai és precíziós felszerelések | C34: 38000000-5 | D34: Avanti lipids polycharbonate membrane filter (pore size: 0.05 um) | E34: Avanti Lipids Inc., Fisher Scientific, Sigma-Aldrich | F34: 100 db / csomag | G34: 60000 | H34: 2 | I34: =G34*H34 -> 120000
A35: Laboratóriumi műanyag áru | B35: Laboratóriumi, optikai és precíziós felszerelések | C35: 38000000-5 | D35: Avanti lipids polycharbonate membrane filter (pore size: 0.1 um) | E35: Avanti Lipids Inc., Fisher Scientific, Sigma-Aldrich | F35: 100 db / csomag | G35: 55000 | H35: 2 | I35: =G35*H35 -> 110000
J36: =SUM(I33:I35) -> 320000
J40: =SUM(J3:J36) -> 1183680
I348: =G348*H348 -> 0
I349: 0
I350: 0
I351: 0
I352: 0
I353: 0
I354: 0
I355: 0
I356: 0
I357: 0
I358: 0
I359: 0
I360: 0
I361: 0
I362: 0
I363: 0
I364: 0
I365: 0
I366: 0
I367: 0
I368: 0
I369: 0
I370: 0
I371: 0
I372: 0
I373: 0
I374: 0
I375: 0
I376: 0
I377: 0
I378: 0
I379: 0
I380: 0
I381: 0
I382: 0
I383: 0
I384: 0
I385: 0
I386: 0
I387: 0
I388: 0
I389: 0
I390: 0
I391: 0
I392: 0
I393: 0
I394: 0
I395: 0
I396: 0
I397: 0
I398: 0
I399: 0
I400: 0
I401: 0
I402: 0
I403: 0
I404: =G404*H404 -> 0
I405: 0
I406: 0
I407: 0
I408: 0
I409: 0
I410: 0
I411: 0
I412: 0
I413: 0
I414: 0
I415: 0
I416: 0
I417: 0
I418: 0
I419: 0
I420: 0
I421: 0
I422: 0
I423: 0
I424: 0
I425: 0
I426: 0
I427: 0
I428: 0
I429: 0
I430: 0
I431: 0
I432: 0
I433: 0
I434: 0
I435: 0
I436: 0
I437: 0
I438: 0
I439: 0
I440: 0
I441: 0
I442: 0
I443: 0
I444: 0
I445: 0
I446: 0
I447: 0
I448: 0
I449: 0
I450: 0
I451: 0
I452: 0
I453: 0
I454: 0
I455: 0
I456: 0
I457: 0
I458: 0
I459: 0
I460: 0
I461: 0
I462: 0
I463: 0
I464: 0
I465: 0
I466: 0
I467: 0
I468: =G468*H468 -> 0
I469: 0
I470: 0
I471: 0
I472: 0
I473: 0
I474: 0
I475: 0
I476: 0
I477: 0
I478: 0
I479: 0
I480: 0
I481: 0
I482: 0
I483: 0
I484: 0
I485: 0
I486: 0
I487: 0
I488: 0
I489: 0
I490: 0
I491: 0
I492: 0
I493: 0
I494: 0
I495: 0
I496: 0
I497: 0
I498: 0
I499: 0
I500: 0
I501: 0
I502: 0
I503: 0
I504: 0
I505: 0
I506: 0
I507: 0
I508: 0
I509: 0
I510: 0
I511: 0
I512: 0
I513: 0
I514: 0
I515: 0
I516: 0
... 250 more rows

Sheet Lázár (hidden)
A1: Megnevezés (munkafüzet 2) | B1: CPV megnevezés | C1: CPV kód | D1: Termék megnevezése | E1: Szállítók (3 db) | F1: Kiszerelés | G1: Becsült nettó egységár (Ft) | H1: Darabszám | I1: Becsült nettó ár (Ft)
A2: Vegyszerek kémiai szintézisekhez
A3: Vegyszerek kémiai szintézisekhez | B3: Különféle szerves vegyi anyagok | C3: 2432-7000-2 | D3: Dimethyl malonate, 98% | E3: VWR International Kft., Sigma-Aldrich Kft., Molar Chemicals Kft. | F3: 500 g | G3: 11904 | H3: 1 | I3: =PRODUCT(G3:H3) -> 11904
A4: Vegyszerek kémiai szintézisekhez | B4: Különféle szerves vegyi anyagok | C4: 2432-7000-2 | D4: Diethyl malonate, 99% | E4: Sigma-Aldrich Kft., VWR International Kft., Molar Chemicals Kft. | F4: 500 g | G4: 12200 | H4: 1 | I4: =G4*H4 -> 12200
A5: Vegyszerek kémiai szintézisekhez | B5: Különféle szerves vegyi anyagok | C5: 2432-7000-2 | D5: Diisopropyl malonate | E5: Sigma-Aldrich Kft., VWR International Kft., Molar Chemicals Kft. | F5: 100 ml | G5: 20670 | H5: 1 | I5: 20670
A6: Vegyszerek kémiai szintézisekhez | B6: Foszfinátok, foszfonátok, foszfátok és polifoszfátok | C6: 2431-3200-3 | D6: Phosphorus pentachloride, 98% | E6: Sigma-Aldrich Kft, VWR International Kft., Molar Chemicals Kft. | F6: 1 kg | G6: 18240 | H6: 1 | I6: 18240
A7: Vegyszerek kémiai szintézisekhez | B7: Különféle szerves vegyi anyagok | C7: 2432-7000-2 | D7: L-(+)-Tartaric acid, 99.5% | E7: Sigma-Aldrich Kft., Reanal Laborvegyszer Kft., VWR International Kft. | F7: 500 g | G7: 14490 | H7: 2 | I7: 28980
A8: Vegyszerek kémiai szintézisekhez | B8: Különféle szerves vegyi anyagok | C8: 2432-7000-2 | D8: Benzyl bromide, 98% | E8: VWR International Kft., Sigma-Aldrich Kft., Molar Chemicals Kft. | F8: 500 g | G8: 58000 | H8: 1 | I8: 58000
A9: Vegyszerek kémiai szintézisekhez | B9: Szerves vegyületek nitrogénfunkciós csoporttal | C9: 2432-4000-1 | D9: n-Butylamine, 99,5% | E9: Sigma-Aldrich Kft., VWR International Kft., Molar Chemicals Kft. | F9: 1000 ml | G9: 18840 | H9: 1 | I9: 18840
A10: Vegyszerek kémiai szintézisekhez | B10: Különféle szerves vegyi anyagok | C10: 2432-7000-2 | D10: Methyl chloroformate, 99% | E10: VWR International Kft., Sigma-Aldrich Kft., Molar Chemicals Kft. | F10: 500 ml | G10: 16600 | H10: 2 | I10: 33200
A11: Vegyszerek kémiai szintézisekhez | B11: Különféle szerves vegyi anyagok | C11: 2432-7000-2 | D11: Ethyl chloroformate, 97% | E11: VWR International Kft., Sigma-Aldrich Kft., Molar Chemicals Kft. | F11: 500 ml | G11: 21000 | H11: 2 | I11: 42000
A12: Vegyszerek kémiai szintézisekhez | B12: Különféle szerves vegyi anyagok | C12: 2432-7000-2 | D12: Benzyl chloroformate, 97% | E12: VWR International Kft., Sigma-Aldrich Kft., Molar Chemicals Kft. | F12: 500 g | G12: 41400 | H12: 2 | I12: 82800
A13: Vegyszerek kémiai szintézisekhez | B13: Aldehidvegyületek oxigénfunkciós csoporttal | C13: 2432-6100-6 | D13: 4-(Trifluormethyl)-benzaldehyde, 98% | E13: Sigma-Aldrich Kft., VWR International Kft., Molar Chemicals Kft. | F13: 50 g | G13: 36600 | H13: 1 | I13: 36600
A14: Vegyszerek kémiai szintézisekhez | B14: Különféle szerves vegyi anyagok | C14: 2432-7000-2 | D14: 1,1-Bis(methylthio)-2-nitroethylene, 95% | E14: VWR International Kft., Sigma-Aldrich Kft., Molar Chemicals Kft. | F14: 25 g | G14: 59904 | H14: 1 | I14: 59904
A15: Vegyszerek kémiai szintézisekhez | B15: Aldehidvegyületek oxigénfunkciós csoporttal | C15: 2432-6100-6 | D15: 4-Fluorobenzaldehyde, 98% | E15: VWR International Kft., Sigma-Aldrich Kft., Molar Chemicals Kft. | F15: 100 g | G15: 25824 | H15: 1 | I15: 25824
A16: Vegyszerek kémiai szintézisekhez | B16: Különféle szerves vegyi anyagok | C16: 2432-7000-2 | D16: Grubbs Catalyst™ 2nd Generation | E16: Sigma-Aldrich Kft. | F16: 500 mg | G16: 107400 | H16: 4 | I16: 429600
A17: Vegyszerek kémiai szintézisekhez | B17: Különféle szerves vegyi anyagok | C17: 2432-7000-2 | D17: Hoveyda-Grubbs Catalyst™ 2nd Generation | E17: Sigma-Aldrich Kft. | F17: 500 mg | G17: 100950 | H17: 4 | I17: 403800
A18: Vegyszerek kémiai szintézisekhez | B18: Különféle szerves vegyi anyagok | C18: 2432-7000-2 | D18: 1H-Indene-3-carboxylic acid | E18: Sigma-Aldrich Kft., Molar Chemicals Kft. | F18: 1 g | G18: 16380 | H18: 2 | I18: 32760
A19: Vegyszerek kémiai szintézisekhez | B19: Különféle szerves vegyi anyagok | C19: 2432-7000-2 | D19: 7-Bromo-1H-indene | E19: Sigma-Aldrich Kft. | F19: 1 g | G19: 36900 | H19: 2 | I19: 73800
A20: Vegyszerek kémiai szintézisekhez | B20: Különféle szerves vegyi anyagok | C20: 2432-7000-2 | D20: Selectfluor® fluorinating reagent , 95% | E20: Sigma-Aldrich Kft. | F20: 25 g | G20: 41400 | H20: 2 | I20: 82800
A21: Vegyszerek kémiai szintézisekhez | B21: Különféle szerves vegyi anyagok | C21: 2432-7000-2 | D21: Deoxo-Fluor® solution ~50% in toluene | E21: Sigma-Aldrich Kft. | F21: 50 ml | G21: 87150 | H21: 2 | I21: 174300
A22: Vegyszerek kémiai szintézisekhez | B22: Különféle szerves vegyi anyagok | C22: 2432-7000-2 | D22: 4-tert-Butyl-2,6-dimethylphenyl-sulfur trifluoride | E22: Sigma-Aldrich Kft. | F22: 5 g | G22: 64350 | H22: 2 | I22: 128700
A23: Vegyszerek kémiai szintézisekhez | B23: Különféle szerves vegyi anyagok | C23: 2432-7000-2 | D23: XtalFluor-E® | E23: Sigma-Aldrich Kft. | F23: 25 g | G23: 55650 | H23: 2 | I23: 111300
A24: Vegyszerek kémiai szintézisekhez | B24: Különféle szerves vegyi anyagok | C24: 2432-7000-2 | D24: XtalFluor-M® | E24: Sigma-Aldrich Kft. | F24: 5 g | G24: 20130 | H24: 2 | I24: 40260
A25: Vegyszerek kémiai szintézisekhez | B25: Különféle szerves vegyi anyagok | C25: 2432-7000-2 | D25: 2,2,2-Trifluoroethylamine hydrochloride, 98% | E25: Sigma-Aldrich Kft. | F25: 50 g | G25: 173400 | H25: 2 | I25: 346800
A26: Vegyszerek kémiai szintézisekhez | B26: Különféle szerves vegyi anyagok | C26: 2432-7000-2 | D26: 2,2-Difluoroethylamine hydrochloride | E26: Sigma-Aldrich Kft. | F26: 1 g | G26: 75450 | H26: 4 | I26: 301800
A27: Vegyszerek kémiai szintézisekhez | B27: Különféle szerves vegyi anyagok | C27: 2432-7000-2 | D27: 2-Fluoroethylamine hydro-chloride, technical grade, 90% | E27: Sigma-Aldrich Kft. | F27: 10 g | G27: 88050 | H27: 2 | I27: 176100
A28: Vegyszerek kémiai szintézisekhez | B28: Különféle szerves vegyi anyagok | C28: 2432-7000-2 | D28: N-Iodosuccinimide, 95% | E28: Sigma-Aldrich Kft., Molar Chemicals Kft. | F28: 25 g | G28: 61650 | H28: 2 | I28: 123300
A29: Vegyszerek kémiai szintézisekhez | B29: Különféle szerves vegyi anyagok | C29: 2432-7000-2 | D29: Grubbs Catalyst™ 3rd Generation | E29: Sigma-Aldrich Kft. | F29: 500 mg | G29: 106050 | H29: 4 | I29: 424200
A30: Vegyszerek kémiai szintézisekhez | B30: Polifoszforsav | C30: 2431-1430-0 | D30: Polyphosphoric acid | E30: VWR International Kft., Sigma-Aldrich Kft., Molar Chemicals Kft. | F30: 1 kg | G30: 20300 | H30: 3 | I30: 60900
A31: Vegyszerek kémiai szintézisekhez | B31: Kénvegyületek | C31: 2431-1600-3 | D31: Thionyl chloride, 97% | E31: VWR International Kft., Molar Chemicals Kft., Reanal Laborvegyszer Kft. | F31: 1000 ml | G31: 45300 | H31: 1 | I31: 45300
A32: Vegyszerek kémiai szintézisekhez | B32: Szervetlen savak | C32: 2431-1410-4 | D32: Hydrogen bromide (33% solution in acetic acid) | E32: Sigma-Aldrich Kft., Molar Chemicals Kft., Reanal Laborvegyszer Kft. | F32: 500 ml | G32: 35136 | H32: 2 | I32: 70272
A33: Vegyszerek kémiai szintézisekhez | B33: Szervetlen savak | C33: 2431-1410-4 | D33: Hydrobromic acid (48% in water) | E33: Molar Chemicals Kft., Reanal Laborvegyszer Kft., VWR International Kft. | F33: 1000 ml | G33: 20400 | H33: 1 | I33: 20400
A34: Vegyszerek kémiai szintézisekhez | B34: Foszfinátok, foszfonátok, foszfátok és polifoszfátok | C34: 2431-3200-3 | D34: Phosphorus(V) oxychloride, 99% | E34: Sigma-Aldrich Kft., VWR International Kft., Molar Chemicals Kft. | F34: 1 kg | G34: 26640 | H34: 2 | I34: 53280
A35: Vegyszerek kémiai szintézisekhez | B35: Hidridek | C35: 2431-1130-7 | D35: Lithium aluminum hydride, powder, 97% | E35: VWR International Kft., Molar Chemicals Kft., Sigma-Aldrich Kft. | F35: 250 g | G35: 84288 | H35: 2 | I35: 168576
A36: Vegyszerek kémiai szintézisekhez | B36: Hidridek | C36: 2431-1130-7 | D36: Sodium borohydride, powder, 99% | E36: VWR International Kft., Sigma-Aldrich Kft., Molar Chemicals Kft. | F36: 100 g | G36: 29600 | H36: 3 | I36: 88800
A37: Vegyszerek kémiai szintézisekhez | B37: Hidridek | C37: 2431-1130-7 | D37: Sodium hydride, 60 % dispersion in mineral oil | E37: Sigma-Aldrich Kft., VWR International Kft., Molar Chemicals Kft. | F37: 500 g | G37: 39450 | H37: 1 | I37: 39450
A38: Vegyszerek kémiai szintézisekhez | B38: Különféle szerves vegyi anyagok | C38: 2432-7000-2 | D38: Ethyl chlorooxoacetate, 98% | E38: Sigma-Aldrich Kft., VWR International Kft., Molar Chemicals Kft. | F38: 100 g | G38: 24060 | H38: 1 | I38: 24060
A39: Vegyszerek kémiai szintézisekhez | B39: Különféle szerves vegyi anyagok | C39: 2432-7000-2 | D39: L-Histidine, 99% | E39: VWR International Kft., Sigma-Aldrich Kft., Molar Chemicals Kft. | F39: 100 g | G39: 20928 | H39: 2 | I39: 41856
A40: Vegyszerek kémiai szintézisekhez | B40: Különféle szerves vegyi anyagok | C40: 2432-7000-2 | D40: DL-alpha-Phenylalanine, 99% | E40: VWR International Kft., Sigma-Aldrich Kft., Molar Chemicals Kft. | F40: 100 g | G40: 22080 | H40: 2 | I40: 44160
A41: Vegyszerek kémiai szintézisekhez | B41: Különféle szerves vegyi anyagok | C41: 2432-7000-2 | D41: Phenyl isothiocyanate, 97% | E41: VWR International Kft., Sigma-Aldrich Kft., Molar Chemicals Kft. | F41: 100 g | G41: 13152 | H41: 1 | I41: 13152
A42: Vegyszerek kémiai szintézisekhez | B42: Különféle szerves vegyi anyagok | C42: 2432-7000-2 | D42: Cyclohexyl isothiocyanate, 98% | E42: VWR International Kft., Sigma-Aldrich Kft., Molar Chemicals Kft. | F42: 25 g | G42: 11808 | H42: 2 | I42: 23616
A43: Vegyszerek kémiai szintézisekhez | B43: Különféle szerves vegyi anyagok | C43: 2432-7000-2 | D43: alpha-Ketoglutaric acid, 98% | E43: VWR International Kft., Sigma-Aldrich Kft., Molar Chemicals Kft. | F43: 100 g | G43: 16224 | H43: 1 | I43: 16224
A44: Vegyszerek kémiai szintézisekhez | B44: Különféle szerves vegyi anyagok | C44: 2432-7000-2 | D44: Isopropyl isothiocyanate, 97% | E44: VWR International Kft., Sigma-Aldrich Kft., Molar Chemicals Kft. | F44: 25 g | G44: 36000 | H44: 1 | I44: 36000
A45: Vegyszerek kémiai szintézisekhez | B45: Különféle szerves vegyi anyagok | C45: 2432-7000-2 | D45: Ethyl isothiocyanate, 97% | E45: VWR International Kft., Sigma-Aldrich Kft., Molar Chemicals Kft. | F45: 100 g | G45: 17088 | H45: 1 | I45: 17088
A46: Vegyszerek kémiai szintézisekhez | B46: Különféle szerves vegyi anyagok | C46: 2432-7000-2 | D46: Benzyl isothiocyanate, 98% | E46: VWR International Kft., Sigma-Aldrich Kft., Molar Chemicals Kft. | F46: 25 g | G46: 30720 | H46: 1 | I46: 30720
A47: Vegyszerek kémiai szintézisekhez | B47: Különféle szerves vegyi anyagok | C47: 2432-7000-2 | D47: 4'-Methoxyacetophenone, 99% | E47: VWR International Kft., Sigma-Aldrich Kft., Molar Chemicals Kft. | F47: 250 g | G47: 11424 | H47: 1 | I47: 11424
A48: Vegyszerek kémiai szintézisekhez | B48: Különféle szerves vegyi anyagok | C48: 2432-7000-2 | D48: Acetophenone, 99% | E48: VWR International Kft., Sigma-Aldrich Kft., Molar Chemicals Kft. | F48: 1000 ml | G48: 11800 | H48: 1 | I48: 11800
J49: =SUM(I3:I48) -> 4115760
A51: Laboratóriumi műanyag áru
A52: Laboratóriumi műanyag áru | D52: PARAFILM zárófólia, szélesség: 100 mm, hossz: 75 m | E52: VWR International Kft., AA Labor Kft., Reanal Laborvegyszer Kft. | F52: 1 tekercs | G52: 21960 | H52: 3 | I52: =G52*H52 -> 65880
J53: =SUM(I52) -> 65880
A55: Laboratóriumi papíráru
A56: Laboratóriumi papíráru | B56: szűrőpapír | C56: 15994200-4 | D56: Redős kvalitatív szűrőpapír általános laboratóriumi munkához, átmérő: 125 mm | E56: VWR International Kft., Reanal Laborvegyszer Kft., Szkarabeusz Laboratóriumi Kft. | F56: 100 db/csomag | G56: 10000 | H56: 10 | I56: =G56*H56 -> 100000
A57: Laboratóriumi papíráru | B57: szűrőpapír | C57: 15994200-4 | D57: Redős kvalitatív szűrőpapír általános laboratóriumi munkához, átmérő: 150 mm | E57: VWR International Kft., Reanal Laborvegyszer Kft., Szkarabeusz Laboratóriumi Kft. | F57: 100 db/csomag | G57: 10000 | H57: 10 | I57: =G57*H57 -> 100000
A58: Laboratóriumi papíráru | B58: szűrőpapír | C58: 15994200-4 | D58: Redős kvalitatív szűrőpapír általános laboratóriumi munkához, átmérő: 185 mm | E58: VWR International Kft., Reanal Laborvegyszer Kft., Szkarabeusz Laboratóriumi Kft. | F58: 100 db/csomag | G58: 8000 | H58: 8 | I58: =G58*H58 -> 64000
A59: Laboratóriumi papíráru | B59: szűrőpapír | C59: 15994200-4 | D59: Redős kvalitatív szűrőpapír általános laboratóriumi munkához, átmérő: 240 mm | E59: VWR International Kft., Reanal Laborvegyszer Kft., Szkarabeusz Laboratóriumi Kft. | F59: 100 db/csomag | G59: 11500 | H59: 6 | I59: =G59*H59 -> 69000
J60: =SUM(I56:I59) -> 333000
I62: =G62*H62 -> 0
I63: 0 | J63: =SUM(J2:J60) -> 4514640
I64: 0
I65: 0
I66: 0
I67: 0
I68: 0
I69: 0
I70: 0
I71: 0
I72: 0
I73: 0
I74: 0
I75: 0
I76: 0
I77: 0
I78: 0
I79: 0
I80: 0
I81: 0
I82: 0
I83: 0
I84: 0
I85: 0
I86: 0
I87: 0
I88: 0
I89: 0
I90: 0
I91: 0
I92: 0
I93: 0
I94: 0
I95: 0
I96: 0
I97: 0
I98: 0
I99: 0
I100: 0
I101: 0
I102: 0
I103: 0
I104: 0
I105: 0
I106: 0
I107: 0
I108: 0
I109: 0
I110: 0
I111: 0
I112: 0
I113: 0
I114: 0
I115: 0
I116: 0
I117: 0
I118: 0
I119: 0
I120: 0
I121: 0
I122: 0
I123: 0
I124: 0
I125: 0
I126: =G126*H126 -> 0
I127: 0
I128: 0
I129: 0
I130: 0
I131: 0
I132: 0
I133: 0
I134: 0
I135: 0
I136: 0
I137: 0
I138: 0
I139: 0
I140: 0
I141: 0
I142: 0
I143: 0
I144: 0
I145: 0
I146: 0
I147: 0
I148: 0
I149: 0
I150: 0
I151: 0
I152: 0
I153: 0
I154: 0
I155: 0
I156: 0
I157: 0
I158: 0
I159: 0
I160: 0
I161: 0
I162: 0
I163: 0
I164: 0
I165: 0
I166: 0
I167: 0
I168: 0
I169: 0
I170: 0
I171: 0
I172: 0
I173: 0
I174: 0
I175: 0
I176: 0
I177: 0
I178: 0
I179: 0
I180: 0
I181: 0
I182: 0
I183: 0
I184: 0
I185: 0
I186: 0
I187: 0
I188: 0
I189: 0
I190: =G190*H190 -> 0
I191: 0
I192: 0
I193: 0
I194: 0
I195: 0
I196: 0
I197: 0
I198: 0
I199: 0
I200: 0
I201: 0
I202: 0
I203: 0
... 557 more rows

Sheet Révész (hidden)
A1: Megnevezés (munkafüzet 2) | B1: CPV megnevezés | C1: CPV kód | D1: Termék megnevezése | E1: Szállítók (3 db) | F1: Kiszerelés | G1: Becsült egységár (Ft) | H1: Darabszám | I1: Becsült ár (Ft)
A3: Szerves alapvegyületek
A4: Szerves alapvegyületek | B4: Szerves alapvegyületek | C4: 24000000-4 | D4: L-α-Lecithin, Egg Yolk | E4: VWR, Molar, Sigma Aldrich | F4: 250 mg | G4: 20000 | H4: 1 | I4: =G4*H4 -> 20000
A5: Szerves alapvegyületek | B5: Szerves alapvegyületek | C5: 24000000-4 | D5: L-α-Lecithin, Soybean | E5: VWR, Molar, Sigma Aldrich | F5: 100 g | G5: 74000 | H5: 1 | I5: =G5*H5 -> 74000
A6: Szerves alapvegyületek | B6: Szerves alapvegyületek | C6: 24000000-4 | D6: Koleszterin ultra pure grade | E6: VWR, Molar, Sigma Aldrich | F6: 500 g | G6: 44000 | H6: 1 | I6: =G6*H6 -> 44000
A7: Szerves alapvegyületek | B7: Szerves alapvegyületek | C7: 24000000-4 | D7: 1,2-Dimyristoyl-sn-glycero-3-PC | E7: VWR, Molar, Sigma Aldrich | F7: 2g | G7: 59000 | H7: 1 | I7: 59000
A8: Szerves alapvegyületek | B8: Szerves alapvegyületek | C8: 24000000-4 | D8: 1,2-Dilauroyl- sn-glycero-3-PC | E8: VWR, Molar, Sigma Aldrich | F8: 2g | G8: 59000 | H8: 1 | I8: 59000
A9: Szerves alapvegyületek | B9: Szerves alapvegyületek | C9: 24000000-4 | D9: 1,2-Distearoyl-sn-glycero-3-PC | E9: VWR, Molar, Sigma Aldrich | F9: 2g | G9: 59000 | H9: 1 | I9: 59000
J10: =SUM(I4:I9) -> 315000
A12: Analitikai célú fogyóanyagok, eszközök
A13: Analitikai célú fogyóanyagok, eszközök | B13: Laboratóriumi, optikai és precíziós felszerelések | C13: 38000000-5 | D13: Parafilm 38 m * 10 cm | E13: VWR, Gen-Lab, Labex, Sigma Aldrich | F13: 1 db | G13: 12000 | H13: 1 | I13: =G13*H13 -> 12000
A14: Analitikai célú fogyóanyagok, eszközök | B14: Laboratóriumi, optikai és precíziós felszerelések | C14: 38000000-5 | D14: fecskendőszűrő 0,22 | E14: VWR, Gen-Lab, Labex, Sigma Aldrich | F14: 50 db/csomag | G14: 25000 | H14: 1 | I14: 25000
A15: Analitikai célú fogyóanyagok, eszközök | B15: Laboratóriumi, optikai és precíziós felszerelések | C15: 38000000-5 | D15: fecskendőszűrő 0,45 | E15: VWR, Gen-Lab, Labex, Sigma Aldrich | F15: 50 db/csomag | G15: 25000 | H15: 1 | I15: 25000
J16: =SUM(I13:I15) -> 62000
A18: Laboratóriumi gumiáru és védőfelszerelések
A19: Laboratóriumi gumiáru és védőfelszerelések | B19: Eldobható gumikesztűk | C19: 18424300-0 | D19: gumikesztyű | E19: VWR, Gen-Lab, Labex, Sigma Aldrich | F19: 100 db/csomag | G19: 3000 | H19: 2 | I19: 6000
J20: =SUM(I19) -> 6000
A22: Laboratóriumi üvegáru
A23: Laboratóriumi üvegáru | B23: Laboratóriumi üvegáru | C23: 33793000-5 | D23: lombik 25 ml | E23: VWR, Gen-Lab, Labex, Sigma Aldrich | F23: 2 db doboz | G23: 7200 | H23: 1 | I23: 7200
I24: 0 | J24: =SUM(I23) -> 7200
I25: 0
I26: 0
I27: 0
I28: 0 | J28: =SUM(J10:J24) -> 390200
I29: 0
I30: 0
I31: 0
I32: 0
I33: 0
I34: 0
I35: 0
I36: 0
I37: 0
I38: 0
I39: 0
I40: 0
I41: 0
I42: 0
I43: 0
I44: 0
I45: 0
I46: 0
I47: 0
I48: 0
I49: 0
I50: 0
I51: 0
I52: 0
I53: 0
I54: 0
I55: 0
I56: 0
I57: 0
I58: 0
I59: 0
I60: 0
I61: 0
I62: 0
I63: 0
I64: 0
I65: 0
I66: 0
I67: 0
I68: 0
I69: 0
I70: 0
I71: 0
I72: 0
I73: 0
I74: 0
I75: 0
I76: 0
I77: 0
I78: =G78*H78 -> 0
I79: 0
I80: 0
I81: 0
I82: 0
I83: 0
I84: 0
I85: 0
I86: 0
I87: 0
I88: 0
I89: 0
I90: 0
I91: 0
I92: 0
I93: 0
I94: 0
I95: 0
I96: 0
I97: 0
I98: 0
I99: 0
I100: 0
I101: 0
I102: 0
I103: 0
I104: 0
I105: 0
I106: 0
I107: 0
I108: 0
I109: 0
I110: 0
I111: 0
I112: 0
I113: 0
I114: 0
I115: 0
I116: 0
I117: 0
I118: 0
I119: 0
I120: 0
I121: 0
I122: 0
I123: 0
I124: 0
I125: 0
I126: 0
I127: 0
I128: 0
I129: 0
I130: 0
I131: 0
I132: 0
I133: 0
I134: 0
I135: 0
I136: 0
I137: 0
I138: 0
I139: 0
I140: 0
I141: 0
I142: =G142*H142 -> 0
I143: 0
I144: 0
I145: 0
I146: 0
I147: 0
I148: 0
I149: 0
I150: 0
I151: 0
I152: 0
I153: 0
I154: 0
I155: 0
I156: 0
I157: 0
I158: 0
I159: 0
I160: 0
I161: 0
I162: 0
I163: 0
I164: 0
I165: 0
I166: 0
I167: 0
I168: 0
I169: 0
I170: 0
I171: 0
I172: 0
I173: 0
I174: 0
I175: 0
I176: 0
I177: 0
I178: 0
I179: 0
I180: 0
I181: 0
I182: 0
I183: 0
I184: 0
I185: 0
I186: 0
I187: 0
I188: 0
I189: 0
I190: 0
I191: 0
I192: 0
I193: 0
I194: 0
I195: 0
I196: 0
I197: 0
I198: 0
I199: 0
I200: 0
I201: 0
I202: 0
I203: 0
I204: 0
... 557 more rows

Sheet Janáky (hidden)
A1: Megnevezés (munkafüzet 2) | B1: CPV megnevezés | C1: CPV kód | D1: Termék megnevezése | E1: Szállítók (3 db) | F1: Kiszerelés | G1: Becsült egységár (Ft) | H1: Darabszám | I1: Becsült ár (Ft)
A3: Oldószerek kromatográfiához
A4: Oldószerek kromatográfiához | B4: Szerves alapvegyületek | C4: 24320000-3 | D4: Acetonitril LC/MS minőség | E4: VWR, Merck, Sigma-Aldrich | F4: 2,5 L | G4: 16920 | H4: 20 | I4: =G4*H4 -> 338400
A5: Oldószerek kromatográfiához | B5: Desztillált víz | C5: 24316000-2 | D5: Water LC/MS minőség | E5: VWR, Merck, Sigma-Aldrich | F5: 2,5 L | G5: 6600 | H5: 20 | I5: 132000
A6: Oldószerek kromatográfiához | B6: Metanol | C6: 24322210-2 | D6: Metanol LC/MS minőség | E6: VWR, Merck, Sigma-Aldrich | F6: 2,5 L | G6: 6400 | H6: 4 | I6: 25600
A7: Oldószerek kromatográfiához | B7: Etil-alkohol | C7: 24322510-5 | D7: Ethanol HPLC minőség | E7: VWR, Merck, Sigma-Aldrich | F7: 2,5 L | G7: 22000 | H7: 4 | I7: 88000
A8: Oldószerek kromatográfiához | B8: Alkohol | C8: 24322500-2 | D8: Propan-2-ol HPLC minőség | E8: VWR, Merck, Sigma-Aldrich | F8: 2,5 L | G8: 18700 | H8: 4 | I8: 74800
A9: Oldószerek kromatográfiához | B9: Metanol | C9: 24322210-2 | D9: Methanol HPLC/UPLC super grádiens minőség | E9: VWR, Merck, Sigma-Aldrich | F9: 2,5 L | G9: 9200 | H9: 4 | I9: 36800
A10: Oldószerek kromatográfiához | B10: Szerves alapvegyületek | C10: 24320000-3 | D10: Acetonitril HPLC/UPLC super grádiens minőség | E10: VWR, Merck, Sigma-Aldrich | F10: 2,5 L | G10: 12000 | H10: 4 | I10: 48000
A11: Oldószerek kromatográfiához | B11: Telített szénhidrogének | C11: 24321100-1 | D11: Hexán > 97% HPLC minőség | E11: VWR, Merck, Sigma-Aldrich | F11: 2,5 l | G11: 20000 | H11: 2 | I11: 40000
A12: Oldószerek kromatográfiához | B12: Ketonok és kinonok oxigénfunkciós csoporttal | C12: 24326200-7 | D12: Aceton GC/MS minőség | E12: Merck Kft. | F12: 2,5 L | G12: 15000 | H12: 4 | I12: 60000
J13: =SUM(I4:I12) -> 843600
A16: Analitikai célú vegyszerek, standardok
A17: Analitikai célú vegyszerek, standardok | B17: Alkoholok, fenolok, fenol-alkoholok és ezek halogén-, szulfo-, nitro- vagy nitrozoszármazékai, ipari zsíralkoholok. | C17: 24322000-7 | D17: Trifluor etanol BioUltra 99% | G17: 40000 | H17: 1 | I17: =G17*H17 -> 40000
A18: Analitikai célú vegyszerek, standardok | B18: Karbonsavak | C18: 24323200-6 | D18: Trifluorecetsav HPLC minőség | E18: VWR, Merck, Sigma-Aldrich | G18: 44500 | H18: 1 | I18: 44500
A19: Analitikai célú vegyszerek, standardok | B19: Ecetsav | C19: 24323210-9 | D19: Ecetsav 99% LC/MS minőség | E19: VWR, Merck, Sigma-Aldrich | F19: 100 mL | G19: 13160 | H19: 2 | I19: 26320
A20: Analitikai célú vegyszerek, standardok | B20: Karbonsavak | C20: 24323200-6 | D20: Hangyasav LC/MS minőség | E20: VWR, Merck, Sigma-Aldrich | F20: 50 mL | G20: 10000 | H20: 3 | I20: 30000
A21: Analitikai célú vegyszerek, standardok | B21: Szervetlen és szerves alapvegyületek | C21: 24300000-7 | D21: Ammónia oldat LC/MS minőség | E21: VWR, Merck, Sigma-Aldrich | F21: 100 mL | G21: 10000 | H21: 2 | I21: 20000
A22: Analitikai célú vegyszerek, standardok | C22: 24300000-7 | D22: Ammónium acetát > 99% LC/MS minőség | E22: VWR, Merck, Sigma-Aldrich | F22: 100 g | G22: 15500 | H22: 1 | I22: 15500
A23: Analitikai célú vegyszerek, standardok | B23: Szervetlen és szerves alapvegyületek | C23: 24300000-7 | D23: Ammónium formiát > 99% LC/MS minőség | E23: VWR, Merck, Sigma-Aldrich | F23: 100 g | G23: 15500 | H23: 1 | I23: 15500
A24: Analitikai célú vegyszerek, standardok | B24: Enzimek | C24: 24965000-6 | D24: Trypsin Gold MS minőség | E24: BioScience Kft. | F24: 100 ug | G24: 50000 | H24: 2 | I24: 100000
A25: Analitikai célú vegyszerek, standardok | B25: Nehézvíz, egyéb izotópok és vegyületeik. | C25: 24315100-6 | D25: Deuterált peptid standardok | E25: JPT Peptide Technologies (DE) | F25: 30 nmol | G25: 60000 | H25: 4 | I25: 240000
J26: =SUM(I17:I25) -> 531820
A28: analitikumok, detektáló műszerek, automaták vegyszerkészletei
A29: analitikumok, detektáló műszerek, automaták vegyszerkészletei | B29: Szervetlen és szerves alapvegyületek | C29: 24300000-7 | D29: Buffer solution pH 4 | E29: VWR, Merck, Sigma-Aldrich | F29: 500 ml | G29: 2500 | H29: 1 | I29: =G29*H29 -> 2500
A30: analitikumok, detektáló műszerek, automaták vegyszerkészletei | B30: Szervetlen és szerves alapvegyületek | C30: 24300000-7 | D30: Buffer solution pH 7 | E30: VWR, Merck, Sigma-Aldrich | F30: 501 ml | G30: 2500 | H30: 1 | I30: =G30*H30 -> 2500
A31: analitikumok, detektáló műszerek, automaták vegyszerkészletei | B31: Szervetlen és szerves alapvegyületek | C31: 24300000-7 | D31: Buffer solution pH 10 | E31: VWR, Merck, Sigma-Aldrich | F31: 502 ml | G31: 2500 | H31: 1 | I31: =G30*H29 -> 2500
A32: analitikumok, detektáló műszerek, automaták vegyszerkészletei | B32: Laboratóriumi reagensek. | C32: 33696500-0 | D32: BCA Protein Assay Kit | E32: Thermo Fisher, Sigma Aldrich, Merck | F32: 500 ml | G32: 39750 | H32: 1 | I32: 39750
A34: Kromatográfiás oszlopok, töltetek
A35: Kromatográfiás oszlopok, töltetek | B35: Laboratóriumi, optikai és precíziós felszerelések | C35: 38000000-5 | D35: Luna Omega Polar 50x2,1mm ( 1,6um) | E35: Gen-lab Kft. | F35: db | G35: 200000 | H35: 1 | I35: =G35*H35 -> 200000
B36: Laboratóriumi, optikai és precíziós felszerelések | C36: 38000000-5 | D36: Luna Omega PS 50x2,1mm (1,6um) | E36: Gen-lab Kft. | F36: db | G36: 200000 | H36: 1 | I36: =G36*H36 -> 200000
A43: Analitikai célú fogyóanyagok, eszközök | I43: =G43*H43 -> 0
A44: Analitikai célú fogyóanyagok, eszközök | B44: Detergensek | C44: 39831200-8 | D44: PAPIGEST SF surfactant | E44: Waters Kft. | F44: 1 mg | G44: 30000 | H44: 6 | I44: 180000
A45: Analitikai célú fogyóanyagok, eszközök | B45: Laboratóriumi, optikai és precíziós felszerelések | C45: 38000000-5 | D45: OASIS Prime HLB cartridge 1cc | E45: Waters Kft. | F45: 100 db/csomag | G45: 53000 | H45: 1 | I45: 53000
A46: Analitikai célú fogyóanyagok, eszközök | B46: Laboratóriumi, optikai és precíziós felszerelések | C46: 38000000-5 | D46: OASIS Prime HLB cartridge 3cc | E46: Waters Kft. | F46: 100 db /csomag | G46: 62000 | H46: 1 | I46: 62000
A47: Analitikai célú fogyóanyagok, eszközök | B47: Laboratóriumi, optikai és precíziós felszerelések | C47: 38000000-5 | D47: Detergent removal spin column (ThermoFisher) | E47: Kvalitex | F47: 24 | G47: 57000 | H47: 2 | I47: 114000
A48: Analitikai célú fogyóanyagok, eszközök | B48: Laboratóriumi, optikai és precíziós felszerelések | C48: 38000000-5 | D48: centrifugális mikrofilter 10kDa memránnal | E48: Merck Kft. | F48: 100 db/csomag | G48: 150000 | H48: 1 | I48: 150000
A49: Analitikai célú fogyóanyagok, eszközök | B49: Laboratóriumi, optikai és precíziós felszerelések | C49: 38000000-5 | D49: centrifugális mikrofilter 30kDa memránnal | E49: Merck Kft. | F49: 100 db/csomag | G49: 150000 | H49: 2 | I49: 300000
A50: Analitikai célú fogyóanyagok, eszközök | B50: Laboratóriumi, optikai és precíziós felszerelések | C50: 38000000-5 | D50: Mikrofecskendő "gastight" fix tű, #3 tű, 25 ul | E50: CP Analitika, AA Labor, VWR | F50: db | G50: 15000 | H50: 6 | I50: 90000
A51: Analitikai célú fogyóanyagok, eszközök | B51: Laboratóriumi, optikai és precíziós felszerelések | C51: 38000000-5 | D51: Mikrofecskendő "gastight" fix tű, #3 tű, 100 ul | E51: CP Analitika, AA Labor, VWR | F51: db | G51: 18000 | H51: 2 | I51: 36000
A52: Analitikai célú fogyóanyagok, eszközök | B52: Laboratóriumi, optikai és precíziós felszerelések | C52: 38000000-5 | D52: Mikrofecskendő "gastight" fix tű, #3 tű, 250 ul | E52: CP Analitika, AA Labor, VWR | F52: db | G52: 25000 | H52: 2 | I52: 50000
A53: Analitikai célú fogyóanyagok, eszközök | B53: Laboratóriumi, optikai és precíziós felszerelések | C53: 38000000-5 | D53: Mikrofecskendő "gastight" fix tű, #3 tű, 500 ul | E53: CP Analitika, AA Labor, VWR | F53: db | G53: 30000 | H53: 2 | I53: 60000
A54: Analitikai célú fogyóanyagok, eszközök | B54: Laboratóriumi, optikai és precíziós felszerelések | C54: 38000000-5 | D54: Üvegfecskendő 10 ml, Luer-Lockcsatlakozóval | E54: CP Analitika, AA Labor, VWR | F54: db | G54: 30000 | H54: 3 | I54: 90000
A55: Analitikai célú fogyóanyagok, eszközök | B55: Laboratóriumi, optikai és precíziós felszerelések | C55: 38000000-5 | D55: ZipTip C18 pipetta hegy (0,6ul) | E55: Merck Kft. | F55: 96 db/ doboz | G55: 100000 | H55: 6 | I55: 600000
D57: Kromatográfiás fogyóanyagok | I57: =G57*H57 -> 0
A58: Analitikai célú fogyóanyagok, eszközök | B58: Laboratóriumi, optikai és precíziós felszerelések | C58: 38000000-5 | D58: F-130X - One-Piece Fingertight Long, PEEK, 10-32 Coned, for 1/16" OD | E58: Bioszeparáció Kft., VWR | F58: 10 db/csomag | G58: 43980 | H58: 2 | I58: 87960
A59: Analitikai célú fogyóanyagok, eszközök | B59: Laboratóriumi, optikai és precíziós felszerelések | C59: 38000000-5 | D59: F-120X - One-Piece Fingertight 10-32 Coned, for 1/16" OD | E59: Bioszeparáció Kft., VWR | F59: 10 db/csomag | G59: 47380 | H59: 2 | I59: 94760
A60: Analitikai célú fogyóanyagok, eszközök | B60: Laboratóriumi, optikai és precíziós felszerelések | C60: 38000000-5 | D60: PK-120BLKX - VHP One-Piece Fitting PK 1/16 | E60: Bioszeparáció Kft., VWR | F60: 10 db/csomag | G60: 49320 | H60: 2 | I60: 98640
A61: Analitikai célú fogyóanyagok, eszközök | C61: 38000000-5 | D61: RHEO-6000-360 Rheodyne Rheflex Fitting, for 1/32" OD Tubing, M4 Coned, PEEK, Natural | E61: Bioszeparáció Kft., VWR | F61: 10 db/csomag | G61: 29169 | H61: 1 | I61: 29169
A62: Analitikai célú fogyóanyagok, eszközök | B62: Laboratóriumi, optikai és precíziós felszerelések | C62: 38000000-5 | D62: F-330X - Two-Piece Fingertight PEEK, Long 10-32 Coned, for 1/16" OD | E62: Bioszeparáció Kft., VWR | F62: 10 db/csomag | G62: 23975 | H62: 1 | I62: 23975
A63: Analitikai célú fogyóanyagok, eszközök | B63: Laboratóriumi, optikai és precíziós felszerelések | C63: 38000000-5 | D63: LT-132 - LiteTouch® Micro Ferrule 10-32 Coned, for 1/32" OD | E63: Bioszeparáció Kft., VWR | F63: 10 db/csomag | G63: 36000 | H63: 1 | I63: 36000
A64: Analitikai célú fogyóanyagok, eszközök | B64: Laboratóriumi, optikai és precíziós felszerelések | C64: 38000000-5 | D64: PK-110X - VHP LiteTouch® Nut PK 1/16" | E64: Bioszeparáció Kft., VWR | F64: 10 db/csomag | G64: 14870 | H64: 1 | I64: 14870
A65: Analitikai célú fogyóanyagok, eszközök | B65: Laboratóriumi, optikai és precíziós felszerelések | C65: 38000000-5 | D65: PK-100X - VHP LiteTouch® Ferrule Assembly PK 1/16" | E65: Bioszeparáció Kft., VWR | F65: 10 db/csomag | G65: 28089 | H65: 1 | I65: 28089
A66: Analitikai célú fogyóanyagok, eszközök | B66: Laboratóriumi, optikai és precíziós felszerelések | C66: 38000000-5 | D66: PK-132x Ferrule for 1/32” OD Tubing | E66: Bioszeparáció Kft., VWR | F66: 10 db/csomag | G66: 41050 | H66: 1 | I66: 41050
A67: Analitikai célú fogyóanyagok, eszközök | B67: Laboratóriumi, optikai és precíziós felszerelések | C67: 38000000-5 | D67: 310010 - PEEKsil™ Tubing 1/32" OD x 100µm ID, 10 cm | E67: Bioszeparáció Kft., VWR | F67: 2 db/csomag | G67: 15450 | H67: 1 | I67: 15450
A68: Analitikai célú fogyóanyagok, eszközök | B68: Laboratóriumi, optikai és precíziós felszerelések | C68: 38000000-5 | D68: 310015 - PEEKsil™ Tubing 1/32" OD x 100µm ID, 15 cm | E68: Bioszeparáció Kft., VWR | F68: 2 db/csomag | G68: 23000 | H68: 4 | I68: 92000
A69: Analitikai célú fogyóanyagok, eszközök | B69: Laboratóriumi, optikai és precíziós felszerelések | C69: 38000000-5 | D69: 310010 - PEEKsil™ Tubing 1/32" OD x 100µm ID, 20 cm | E69: Bioszeparáció Kft., VWR | F69: 2 db/csomag | G69: 21000 | H69: 2 | I69: 42000
A70: Analitikai célú fogyóanyagok, eszközök | B70: Laboratóriumi, optikai és precíziós felszerelések | C70: 38000000-5 | D70: 310050 - PEEKsil™ Tubing 1/32" OD x 100µm ID, 50 cm | E70: Bioszeparáció Kft., VWR | F70: 2 db/csomag | G70: 32500 | H70: 4 | I70: 130000
A71: Analitikai célú fogyóanyagok, eszközök | B71: Laboratóriumi, optikai és precíziós felszerelések | C71: 38000000-5 | D71: 1535 - PEEK Tubing Red 1/16" OD x .005" ID x 50ft | E71: Bioszeparáció Kft., VWR | F71: 1 db/csomag | G71: 98455 | H71: 1 | I71: 98455
A72: Analitikai célú fogyóanyagok, eszközök | B72: Laboratóriumi, optikai és precíziós felszerelések | C72: 38000000-5 | D72: 1531 - PEEK Tubing Natural 1/16" OD x .010" ID x 5ft | E72: Bioszeparáció Kft., VWR | F72: 1 db/csomag | G72: 10000 | H72: 5 | I72: 50000
A73: Analitikai célú fogyóanyagok, eszközök | B73: Laboratóriumi, optikai és precíziós felszerelések | C73: 38000000-5 | D73: 1576 - PEEK Tubing Red 1/32" OD x .005" " ID x 5ft | E73: Bioszeparáció Kft., VWR | F73: 1 db/csomag | G73: 20000 | H73: 3 | I73: 60000
A74: Analitikai célú fogyóanyagok, eszközök | B74: Laboratóriumi, optikai és precíziós felszerelések | C74: 38000000-5 | D74: 1561 - PEEK Tubing Black 1/16" OD x .004" ID x 5ft | E74: Bioszeparáció Kft., VWR | F74: 1 db/csomag | G74: 14000 | H74: 3 | I74: 42000
J75: =SUM(I44:I74) -> 2769418
A78: Műszeralkatrészek
A79: Műszeralkatrészek | B79: Egyéb gépek alkatrészei. | C79: 42950000-0 | D79: Acquity UPLC pumpa 3VCCPU AHTC vezérlő kártya (700005763) | E79: Waters Kft. | F79: 1 db | G79: 90000 | H79: 1 | I79: =G79*H79 -> 90000
A80: Műszeralkatrészek | B80: Egyéb gépek alkatrészei. | C80: 42950000-0 | D80: Acquity UPLC SM I-Class PEEK Needle kit, 10uL (700005923) | E80: Waters Kft. | F80: 1 db/csomag | G80: 57000 | H80: 2 | I80: 114000
A81: Műszeralkatrészek | B81: Egyéb gépek alkatrészei. | C81: 42950000-0 | D81: Acquity UPLC SM I-Class ASSY, SAMPLE LOOP, 20 ul (430001320) | E81: Waters Kft. | F81: 1 db/csomag | G81: 26000 | H81: 1 | I81: 26000
A82: Műszeralkatrészek | B82: Egyéb gépek alkatrészei. | C82: 42950000-0 | D82: Ferrule Set, 1/16 ID, Two-piece, (700002635) | E82: Waters Kft. | F82: 10 db/csomag | G82: 46000 | H82: 1 | I82: 46000
A83: Műszeralkatrészek | B83: Egyéb gépek alkatrészei. | C83: 42950000-0 | D83: Screw, Comp.,10-32, 304SS,GOLD (70000264) | E83: Waters Kft. | F83: 10 db/csomag | G83: 62000 | H83: 1 | I83: 62000
A84: Műszeralkatrészek | B84: Egyéb gépek alkatrészei. | C84: 42950000-0 | D84: 1/4in. Short Comp. Screw (Gold-plated) (700002634) | E84: Waters Kft. | F84: 10 db/csomag | G84: 46000 | H84: 1 | I84: 46000
A85: Műszeralkatrészek | B85: Egyéb gépek alkatrészei. | C85: 42950000-0 | D85: ASAP Probe Glass Capillary 1.9 x 100mm [700005025 | E85: Waters Kft. | F85: 100 db/csomag) | G85: 23000 | H85: 1 | I85: 23000
A86: Műszeralkatrészek | B86: Egyéb gépek alkatrészei. | C86: 42950000-0 | D86: Capillary Tube (M956358AD1) | E86: Waters Kft. | F86: 1 db/csomag | G86: 34000 | H86: 1 | I86: 34000
A87: Műszeralkatrészek | B87: Egyéb gépek alkatrészei. | C87: 42950000-0 | D87: O RING SIZE 540 VITON 85712039-S) | E87: Waters Kft. | F87: 1 db/csomag | G87: 7000 | H87: 1 | I87: 7000
I88: 0
A90: Laboratóriumi üvegáru
A91: Laboratóriumi üvegáru | B91: Laboratóriumi üvegáru | C91: 33793000-5 | D91: 1,5 mL Menetes (9mm) mintatartó üveg (11,6x32 mm) széles szájjal | E91: LAB-EX Kft., ViaLab Kft., VWR | F91: 100 db/csomag | G91: 1500 | H91: 30 | I91: =G91*H91 -> 45000
A92: Laboratóriumi üvegáru | B92: Laboratóriumi üvegáru | C92: 33793000-5 | D92: 9 mm Kupak PTFE/fehér szilikon szeptummal | E92: LAB-EX Kft., ViaLab Kft., VWR | F92: 100 db/csomag | G92: 2300 | H92: 50 | I92: 115000
A93: Laboratóriumi üvegáru | B93: Laboratóriumi üvegáru | C93: 33793000-5 | D93: Mikrobetét széles szájú mintatartóhoz 300 ul, 31x6mm, lapos aljú | E93: LAB-EX Kft., ViaLab Kft., VWR | F93: 100 db/csomag | G93: 2000 | H93: 30 | I93: 60000
A94: Laboratóriumi üvegáru | B94: Laboratóriumi üvegáru | C94: 33793000-5 | D94: Mikrobetét széles szájú mintatartóhoz 31,5x5.8mm, kúpos aljú | E94: LAB-EX Kft., ViaLab Kft., VWR | F94: 100 db/csomag | G94: 3300 | H94: 50 | I94: 165000
A95: Laboratóriumi üvegáru | B95: Laboratóriumi üvegáru | C95: 33793000-5 | D95: Mikrobetét széles szájú mintatartóhoz, 29x5,7 mm átlátszó, polimer lábbal | E95: LAB-EX Kft., ViaLab Kft., VWR | F95: 100 db/csomag | G95: 4000 | H95: 10 | I95: 40000
A96: Laboratóriumi üvegáru | B96: Laboratóriumi üvegáru | C96: 33793000-5 | D96: 4 mL Menetes (13mm) mintatartó üveg (14,7x 45mm) | E96: LAB-EX Kft., ViaLab Kft., VWR | F96: 100 db/csomag | G96: 2200 | H96: 10 | I96: 22000
A97: Laboratóriumi üvegáru | B97: Laboratóriumi üvegáru | C97: 33793000-5 | D97: 13 mm Kupak (zárt) natúr PTFE/natúr szilikon szeptummal | E97: LAB-EX Kft., ViaLab Kft., VWR | F97: 100 db/csomag | G97: 2700 | H97: 10 | I97: 27000
A98: Laboratóriumi üvegáru | B98: Laboratóriumi üvegáru | C98: 33793000-5 | D98: 8 mL menetes (15mm) szintelen mintatartó üveg (61x16,6 mm) | E98: LAB-EX Kft., ViaLab Kft., VWR | F98: 100 db/csomag | G98: 3000 | H98: 3 | I98: 9000
A99: Laboratóriumi üvegáru | B99: Laboratóriumi üvegáru | C99: 33793000-5 | D99: 15 mm Kupak (zárt) fehér PTFE/piros szilikon szeptummal | E99: LAB-EX Kft., ViaLab Kft., VWR | F99: 100 db/csomag | G99: 3200 | H99: 3 | I99: 9600
A100: Laboratóriumi üvegáru | B100: Laboratóriumi üvegáru | C100: 33793000-5 | D100: Főzőpohár 1000 ml alacsony | E100: VWR, AA labor, LabSystem | F100: 10 db/csomag | G100: 13300 | H100: 1 | I100: 13300
A101: Laboratóriumi üvegáru | B101: Laboratóriumi üvegáru | C101: 33793000-5 | D101: Főzőpohár 600 ml magas | E101: VWR, AA labor, LabSystem | F101: 10 db/csomag | G101: 8400 | H101: 1 | I101: 8400
A102: Laboratóriumi üvegáru | B102: Laboratóriumi üvegáru | C102: 33793000-5 | D102: Főzőpohár 250 ml magas | E102: VWR, AA labor, LabSystem | F102: 10 db/csomag | G102: 5400 | H102: 1 | I102: 5400
A103: Laboratóriumi üvegáru | B103: Laboratóriumi üvegáru | C103: 33793000-5 | D103: Boroszilikát üveg, csavaros PP kupakkal 100 ml | E103: VWR, AA labor, LabSystem | F103: 10 db/csomag | G103: 5800 | H103: 1 | I103: 5800
A104: Laboratóriumi üvegáru | B104: Laboratóriumi üvegáru | C104: 33793000-5 | D104: Boroszilikát üveg, csavaros PP kupakkal 250 ml | E104: VWR, AA labor, LabSystem | F104: 10 db/csomag | G104: 6600 | H104: 1 | I104: 6600
A105: Laboratóriumi üvegáru | B105: Laboratóriumi üvegáru | C105: 33793000-5 | D105: Boroszilikát üveg, csavaros PP kupakkal 500 ml | E105: VWR, AA labor, LabSystem | F105: 10 db/csomag | G105: 8200 | H105: 1 | I105: 8200
J106: =SUM(I91:I105) -> 540300
A109: Laboratóriumi műanyagáru
A110: Laboratóriumi műanyagáru | B110: Műanyag termékek | C110: 19520000-7 | D110: Mikrocentrifugacső 1,5 mL, szintelen, nem steril | E110: Biocenter Kft., LabSystem Kft., AA Labor | F110: 1000db/csomag | G110: 4000 | H110: 5 | I110: =G110*H110 -> 20000
A111: Laboratóriumi műanyagáru | B111: Műanyag termékek | C111: 19520000-7 | D111: Mikrocentrifugacső 0,5 mL | E111: Biocenter Kft., LabSystem Kft., AA Labor | F111: 1000db/csomag | G111: 3000 | H111: 8 | I111: 24000
A112: Laboratóriumi műanyagáru | B112: Műanyag termékek | C112: 19520000-7 | D112: PP Centrifugacső 15 ml, csavaros, kónikus, RNase, Dnase, pyrogen free | E112: Biocenter Kft., LabSystem Kft., AA Labor | F112: 500 db/ csomag | G112: 6000 | H112: 4 | I112: 24000
A113: Laboratóriumi műanyagáru | B113: Műanyag termékek | C113: 19520000-7 | D113: PP Centrifugacső 50 ml, csavaros, kónikus, RNase, Dnase, pyrogen free | E113: Biocenter Kft., LabSystem Kft., AA Labor | F113: 500 db/ csomag | G113: 7000 | H113: 2 | I113: 14000
A114: Laboratóriumi műanyagáru | B114: Pipetta hegy | C114: 38437110-1 | D114: Ultra-Low Retention pipetta hegy 0,1-10 ul | E114: Biocenter Kft. | F114: 1000db/csomag | G114: 3200 | H114: 5 | I114: 16000
A115: Laboratóriumi műanyagáru | B115: Pipetta hegy | C115: 38437110-1 | D115: Ultra-Low Retention pipetta hegy 200 ul | E115: Biocenter Kft. | F115: 1000db/csomag | G115: 2700 | H115: 5 | I115: 13500
A116: Laboratóriumi műanyagáru | B116: Pipetta hegy | C116: 38437110-1 | D116: Ultra-Low Retention pipetta hegy 1000 ul | E116: Biocenter Kft. | F116: 1000db/csomag | G116: 3100 | H116: 3 | I116: 9300
I117: 0 | J117: =SUM(I110:I116) -> 120800
I118: 0
A119: Laboratóriumi gumiáru és védőfelszerelések
A120: Laboratóriumi gumiáru és védőfelszerelések | B120: Eldobható gumikesztűk | C120: 18424300-0 | D120: Púdermentes gumikesztyű S méretű | E120: USUS Kft., Roli-Dent Kft., Creativ Dental fogaszati kereskedés és szerviz | F120: 100 db/csomag | G120: 1200 | H120: 5 | I120: =G120*H120 -> 6000
A121: Laboratóriumi gumiáru és védőfelszerelések | B121: Eldobható gumikesztűk | C121: 18424300-0 | D121: Púdermentes gumikesztyű M méretű | E121: USUS Kft., Roli-Dent Kft., Creativ Dental fogaszati kereskedés és szerviz | F121: 100 db/csomag | G121: 1200 | H121: 5 | I121: =G121*H121 -> 6000
A122: Laboratóriumi gumiáru és védőfelszerelések | B122: Eldobható gumikesztűk | C122: 18424300-0 | D122: Púdermentes gumikesztyű L méretű | E122: USUS Kft., Roli-Dent Kft., Creativ Dental fogaszati kereskedés és szerviz | F122: 100 db/csomag | G122: 1200 | H122: 5 | I122: =G122*H122 -> 6000
I123: =G123*H123 -> 0 | J123: =SUM(I120:I122) -> 18000
I124: =G124*H124 -> 0
I125: 0
I126: 0
I127: 0
I128: 0
I129: 0
I130: 0
I131: 0
I132: 0
I133: 0
I134: 0
I135: 0
I136: 0 | J136: =SUM(J2:J135) -> 4823938
I137: 0
I138: 0
I139: 0
I140: 0
I141: 0
I142: 0
I143: 0
I144: 0
I145: 0
I146: 0
I147: 0
I148: 0
I149: 0
I150: 0
I151: 0
I152: 0
I153: 0
I154: 0
I155: 0
I156: 0
I157: 0
I158: 0
I159: 0
I160: 0
I161: 0
I162: 0
I163: =G163*H163 -> 0
I164: 0
I165: 0
I166: 0
I167: 0
I168: 0
I169: 0
I170: 0
I171: 0
I172: 0
I173: 0
I174: 0
I175: 0
I176: 0
I177: 0
I178: 0
I179: 0
I180: 0
I181: 0
I182: 0
I183: 0
I184: 0
I185: 0
I186: 0
I187: 0
I188: 0
I189: 0
I190: 0
I191: 0
I192: 0
I193: 0
I194: 0
I195: 0
I196: 0
I197: 0
I198: 0
I199: 0
I200: 0
I201: 0
I202: 0
I203: 0
I204: 0
I205: 0
I206: 0
I207: 0
I208: 0
I209: 0
I210: 0
I211: 0
I212: 0
I213: 0
I214: 0
I215: 0
I216: 0
I217: 0
... 565 more rows

Sheet Munka1 (hidden)
A1: Megnevezés (munkafüzet 2) | B1: CPV megnevezés | C1: CPV kód | D1: Termék megnevezése | E1: Szállítók (3 db) | F1: Kiszerelés | G1: Becsült egységár (Ft) | H1: Darabszám | I1: Becsült ár (Ft)
A3: Állatkisérletekhez szükséges anyagok
A4: Állatkisérletekhez szükséges anyagok | B4: Enzimek | C4: 24965000-6 | D4: Proteinase K solution, cikkszám: BIO-37084 | E4: Bioline, Izinta Kereskedelmi Kft., Sigma Aldrich | F4: 5 ml | G4: 35130 | H4: 1 | I4: =G4*H4 -> 35130
A5: Állatkisérletekhez szükséges anyagok | B5: Műanyag termékek | C5: 19520000-7 | D5: PP egészségügyi körsapka, fehér | E5: Labsystem Kft, Morello Kft, Bunzl Kft. | F5: csomag (100 db) | G5: 1079 | H5: 3 | I5: =G5*H5 -> 3237
J6: =SUM(I4:I5) -> 38367
A8: Analitikai célú fogyóanyagok, eszközök | I8: =G8*H8 -> 0
A9: Analitikai célú fogyóanyagok, eszközök | B9: Detergensek | C9: 39831200-8 | D9: PAPIGEST SF surfactant | E9: Waters Kft. | F9: 1 mg | G9: 30000 | H9: 6 | I9: 180000
A10: Analitikai célú fogyóanyagok, eszközök | B10: Laboratóriumi, optikai és precíziós felszerelések | C10: 38000000-5 | D10: OASIS Prime HLB cartridge 1cc | E10: Waters Kft. | F10: 100 db/csomag | G10: 53000 | H10: 1 | I10: 53000
A11: Analitikai célú fogyóanyagok, eszközök | B11: Laboratóriumi, optikai és precíziós felszerelések | C11: 38000000-5 | D11: OASIS Prime HLB cartridge 3cc | E11: Waters Kft. | F11: 100 db /csomag | G11: 62000 | H11: 1 | I11: 62000
A12: Analitikai célú fogyóanyagok, eszközök | B12: Laboratóriumi, optikai és precíziós felszerelések | C12: 38000000-5 | D12: Detergent removal spin column (ThermoFisher) | E12: Kvalitex | F12: 24 | G12: 57000 | H12: 2 | I12: 114000
A13: Analitikai célú fogyóanyagok, eszközök | B13: Laboratóriumi, optikai és precíziós felszerelések | C13: 38000000-5 | D13: centrifugális mikrofilter 10kDa memránnal | E13: Merck Kft. | F13: 100 db/csomag | G13: 150000 | H13: 1 | I13: 150000
A14: Analitikai célú fogyóanyagok, eszközök | B14: Laboratóriumi, optikai és precíziós felszerelések | C14: 38000000-5 | D14: centrifugális mikrofilter 30kDa memránnal | E14: Merck Kft. | F14: 100 db/csomag | G14: 150000 | H14: 2 | I14: 300000
A15: Analitikai célú fogyóanyagok, eszközök | B15: Laboratóriumi, optikai és precíziós felszerelések | C15: 38000000-5 | D15: Mikrofecskendő "gastight" fix tű, #3 tű, 25 ul | E15: CP Analitika, AA Labor, VWR | F15: db | G15: 15000 | H15: 6 | I15: 90000
A16: Analitikai célú fogyóanyagok, eszközök | B16: Laboratóriumi, optikai és precíziós felszerelések | C16: 38000000-5 | D16: Mikrofecskendő "gastight" fix tű, #3 tű, 100 ul | E16: CP Analitika, AA Labor, VWR | F16: db | G16: 18000 | H16: 2 | I16: 36000
A17: Analitikai célú fogyóanyagok, eszközök | B17: Laboratóriumi, optikai és precíziós felszerelések | C17: 38000000-5 | D17: Mikrofecskendő "gastight" fix tű, #3 tű, 250 ul | E17: CP Analitika, AA Labor, VWR | F17: db | G17: 25000 | H17: 2 | I17: 50000
A18: Analitikai célú fogyóanyagok, eszközök | B18: Laboratóriumi, optikai és precíziós felszerelések | C18: 38000000-5 | D18: Mikrofecskendő "gastight" fix tű, #3 tű, 500 ul | E18: CP Analitika, AA Labor, VWR | F18: db | G18: 30000 | H18: 2 | I18: 60000
A19: Analitikai célú fogyóanyagok, eszközök | B19: Laboratóriumi, optikai és precíziós felszerelések | C19: 38000000-5 | D19: Üvegfecskendő 10 ml, Luer-Lockcsatlakozóval | E19: CP Analitika, AA Labor, VWR | F19: db | G19: 30000 | H19: 3 | I19: 90000
A20: Analitikai célú fogyóanyagok, eszközök | B20: Laboratóriumi, optikai és precíziós felszerelések | C20: 38000000-5 | D20: ZipTip C18 pipetta hegy (0,6ul) | E20: Merck Kft. | F20: 96 db/ doboz | G20: 100000 | H20: 6 | I20: 600000
A21: Analitikai célú fogyóanyagok, eszközök | B21: Laboratóriumi, optikai és precíziós felszerelések | C21: 38000000-5 | D21: Parafilm 38 m * 10 cm | E21: VWR, Gen-Lab, Labex, Sigma Aldrich | F21: 1 db | G21: 12000 | H21: 1 | I21: 12000
A22: Analitikai célú fogyóanyagok, eszközök | B22: Laboratóriumi, optikai és precíziós felszerelések | C22: 38000000-5 | D22: fecskendőszűrő 0,22 | E22: VWR, Gen-Lab, Labex, Sigma Aldrich | F22: 50 db/csomag | G22: 25000 | H22: 1 | I22: =G22*H22 -> 25000
A23: Analitikai célú fogyóanyagok, eszközök | B23: Laboratóriumi, optikai és precíziós felszerelések | C23: 38000000-5 | D23: fecskendőszűrő 0,45 | E23: VWR, Gen-Lab, Labex, Sigma Aldrich | F23: 50 db/csomag | G23: 25000 | H23: 1 | I23: 25000
A24: Analitikai célú fogyóanyagok, eszközök | B24: Laboratóriumi, optikai és precíziós felszerelések | C24: 38000000-5 | D24: F-130X - One-Piece Fingertight Long, PEEK, 10-32 Coned, for 1/16" OD | E24: Bioszeparáció Kft., VWR | F24: 10 db/csomag | G24: 43980 | H24: 2 | I24: 87960
A25: Analitikai célú fogyóanyagok, eszközök | B25: Laboratóriumi, optikai és precíziós felszerelések | C25: 38000000-5 | D25: F-120X - One-Piece Fingertight 10-32 Coned, for 1/16" OD | E25: Bioszeparáció Kft., VWR | F25: 10 db/csomag | G25: 47380 | H25: 2 | I25: 94760
A26: Analitikai célú fogyóanyagok, eszközök | B26: Laboratóriumi, optikai és precíziós felszerelések | C26: 38000000-5 | D26: PK-120BLKX - VHP One-Piece Fitting PK 1/16 | E26: Bioszeparáció Kft., VWR | F26: 10 db/csomag | G26: 49320 | H26: 2 | I26: 98640
A27: Analitikai célú fogyóanyagok, eszközök | B27: Laboratóriumi, optikai és precíziós felszerelések | C27: 38000000-5 | D27: RHEO-6000-360 Rheodyne Rheflex Fitting, for 1/32" OD Tubing, M4 Coned, PEEK, Natural | E27: Bioszeparáció Kft., VWR | F27: 10 db/csomag | G27: 29169 | H27: 1 | I27: 29169
A28: Analitikai célú fogyóanyagok, eszközök | B28: Laboratóriumi, optikai és precíziós felszerelések | C28: 38000000-5 | D28: F-330X - Two-Piece Fingertight PEEK, Long 10-32 Coned, for 1/16" OD | E28: Bioszeparáció Kft., VWR | F28: 10 db/csomag | G28: 23975 | H28: 1 | I28: 23975
A29: Analitikai célú fogyóanyagok, eszközök | B29: Laboratóriumi, optikai és precíziós felszerelések | C29: 38000000-5 | D29: LT-132 - LiteTouch® Micro Ferrule 10-32 Coned, for 1/32" OD | E29: Bioszeparáció Kft., VWR | F29: 10 db/csomag | G29: 36000 | H29: 1 | I29: 36000
A30: Analitikai célú fogyóanyagok, eszközök | B30: Laboratóriumi, optikai és precíziós felszerelések | C30: 38000000-5 | D30: PK-110X - VHP LiteTouch® Nut PK 1/16" | E30: Bioszeparáció Kft., VWR | F30: 10 db/csomag | G30: 14870 | H30: 1 | I30: 14870
A31: Analitikai célú fogyóanyagok, eszközök | B31: Laboratóriumi, optikai és precíziós felszerelések | C31: 38000000-5 | D31: PK-100X - VHP LiteTouch® Ferrule Assembly PK 1/16" | E31: Bioszeparáció Kft., VWR | F31: 10 db/csomag | G31: 28089 | H31: 1 | I31: 28089
A32: Analitikai célú fogyóanyagok, eszközök | B32: Laboratóriumi, optikai és precíziós felszerelések | C32: 38000000-5 | D32: PK-132x Ferrule for 1/32” OD Tubing | E32: Bioszeparáció Kft., VWR | F32: 10 db/csomag | G32: 41050 | H32: 1 | I32: 41050
A33: Analitikai célú fogyóanyagok, eszközök | B33: Laboratóriumi, optikai és precíziós felszerelések | C33: 38000000-5 | D33: 310010 - PEEKsil™ Tubing 1/32" OD x 100µm ID, 10 cm | E33: Bioszeparáció Kft., VWR | F33: 2 db/csomag | G33: 15450 | H33: 1 | I33: 15450
A34: Analitikai célú fogyóanyagok, eszközök | B34: Laboratóriumi, optikai és precíziós felszerelések | C34: 38000000-5 | D34: 310015 - PEEKsil™ Tubing 1/32" OD x 100µm ID, 15 cm | E34: Bioszeparáció Kft., VWR | F34: 2 db/csomag | G34: 23000 | H34: 4 | I34: 92000
A35: Analitikai célú fogyóanyagok, eszközök | B35: Laboratóriumi, optikai és precíziós felszerelések | C35: 38000000-5 | D35: 310010 - PEEKsil™ Tubing 1/32" OD x 100µm ID, 20 cm | E35: Bioszeparáció Kft., VWR | F35: 2 db/csomag | G35: 21000 | H35: 2 | I35: 42000
A36: Analitikai célú fogyóanyagok, eszközök | B36: Laboratóriumi, optikai és precíziós felszerelések | C36: 38000000-5 | D36: 310050 - PEEKsil™ Tubing 1/32" OD x 100µm ID, 50 cm | E36: Bioszeparáció Kft., VWR | F36: 2 db/csomag | G36: 32500 | H36: 4 | I36: 130000
A37: Analitikai célú fogyóanyagok, eszközök | B37: Laboratóriumi, optikai és precíziós felszerelések | C37: 38000000-5 | D37: 1535 - PEEK Tubing Red 1/16" OD x .005" ID x 50ft | E37: Bioszeparáció Kft., VWR | F37: 1 db/csomag | G37: 98455 | H37: 1 | I37: 98455
A38: Analitikai célú fogyóanyagok, eszközök | B38: Laboratóriumi, optikai és precíziós felszerelések | C38: 38000000-5 | D38: 1531 - PEEK Tubing Natural 1/16" OD x .010" ID x 5ft | E38: Bioszeparáció Kft., VWR | F38: 1 db/csomag | G38: 10000 | H38: 5 | I38: 50000
A39: Analitikai célú fogyóanyagok, eszközök | B39: Laboratóriumi, optikai és precíziós felszerelések | C39: 38000000-5 | D39: 1576 - PEEK Tubing Red 1/32" OD x .005" " ID x 5ft | E39: Bioszeparáció Kft., VWR | F39: 1 db/csomag | G39: 20000 | H39: 3 | I39: 60000
A40: Analitikai célú fogyóanyagok, eszközök | B40: Laboratóriumi, optikai és precíziós felszerelések | C40: 38000000-5 | D40: 1561 - PEEK Tubing Black 1/16" OD x .004" ID x 5ft | E40: Bioszeparáció Kft., VWR | F40: 1 db/csomag | G40: 14000 | H40: 3 | I40: 42000
J41: =SUM(I9:I40) -> 2831418
A43: Analitikai célú vegyszerek, standardok
A44: Analitikai célú vegyszerek, standardok | B44: Enzimek. | C44: 24965000-6 | D44: Furin enzim, humán fehérje pufferben, baculovirus fertőzött Sf9 sejtekben expresszált, ≥2,000 unit/mL | E44: Sigma Aldrich, Thomas Scientific, | F44: 50 egység | G44: 115200 | H44: 2 | I44: =G44*H44 -> 230400
A45: Analitikai célú vegyszerek, standardok | B45: Különleges célú vegyipari termékek. | C45: 24950000-8 | D45: Furin Activity Detection kit, 96-well format | E45: VWR Kft., Enzium, ImmunoReagents Inc. | F45: kit | G45: 230000 | H45: 1 | I45: 230000
A46: Analitikai célú vegyszerek, standardok | B46: Szerves vegyületek nitrogénfunkciós csoporttal. | C46: 24324000-1 | D46: Acrylamide, Assay min. 99,9% | E46: VWR Kft., Sigma Aldrich, Bio-Rad Kft. | F46: 500 g | G46: 52640 | H46: 1 | I46: 52640
A47: Analitikai célú vegyszerek, standardok | B47: Szerves vegyületek nitrogénfunkciós csoporttal. | C47: 24324000-1 | D47: Bis-acrylamide, Ultra Pure Grade | E47: VWR Kft., Sigma Aldrich, Bio-Rad Kft. | F47: 100 g | G47: 17672 | H47: 1 | I47: 17672
A48: Analitikai célú vegyszerek, standardok | B48: Peptonok és proteinanyagok. | C48: 24956000-0 | D48: Fehérje marker - Precision Plus Protein Standards-Kaleidoscope, egyenként színezett, min. 0-200 kDa detektálási sáv, Bis-Tris géllel kompatibilis, Western-blothoz alkalmas | E48: Bio-Rad, SelectScience, Biocompare | F48: 500 ul | G48: 56110 | H48: 1 | I48: 56110
A49: Analitikai célú vegyszerek, standardok | B49: Szerves vegyületek nitrogénfunkciós csoporttal. | C49: 24324000-1 | D49: Thiazolyl Blue Tetrazolium Bromide (MTT), 3-(4,5-Dimethyl-2-thiazolyl)-2,5-diphenyl-2H-tetrazolium bromide, MTT, Methylthiazolyldiphenyl-tetrazolium bromide. Sejttenyészeten használható, 570 nm-en mérhető. Vízben oldódik, >97% tisztaságú | E49: Sigma Aldrich, Abcam, Santa Cruz Biotechnology | F49: 1 g | G49: 29820 | H49: 1 | I49: 29820
A50: Analitikai célú vegyszerek, standardok | B50: Alkoholok, fenolok, fenol-alkoholok és ezek halogén-, szulfo-, nitro- vagy nitrozoszármazékai, ipari zsíralkoholok. | C50: 24322000-7 | D50: Trifluor etanol BioUltra 99% | G50: 40000 | H50: 1 | I50: =G50*H50 -> 40000
A51: Analitikai célú vegyszerek, standardok | B51: Karbonsavak | C51: 24323200-6 | D51: Trifluorecetsav HPLC minőség | E51: VWR, Merck, Sigma-Aldrich | G51: 44500 | H51: 1 | I51: 44500
A52: Analitikai célú vegyszerek, standardok | B52: Ecetsav | C52: 24323210-9 | D52: Ecetsav 99% LC/MS minőség | E52: VWR, Merck, Sigma-Aldrich | F52: 100 mL | G52: 13160 | H52: 2 | I52: 26320
A53: Analitikai célú vegyszerek, standardok | B53: Karbonsavak | C53: 24323200-6 | D53: Hangyasav LC/MS minőség | E53: VWR, Merck, Sigma-Aldrich | F53: 50 mL | G53: 10000 | H53: 3 | I53: 30000
A54: Analitikai célú vegyszerek, standardok | B54: Szervetlen és szerves alapvegyületek | C54: 24300000-7 | D54: Ammónia oldat LC/MS minőség | E54: VWR, Merck, Sigma-Aldrich | F54: 100 mL | G54: 10000 | H54: 2 | I54: 20000
A55: Analitikai célú vegyszerek, standardok | C55: 24300000-7 | D55: Ammónium acetát > 99% LC/MS minőség | E55: VWR, Merck, Sigma-Aldrich | F55: 100 g | G55: 15500 | H55: 1 | I55: 15500
A56: Analitikai célú vegyszerek, standardok | B56: Szervetlen és szerves alapvegyületek | C56: 24300000-7 | D56: Ammónium formiát > 99% LC/MS minőség | E56: VWR, Merck, Sigma-Aldrich | F56: 100 g | G56: 15500 | H56: 1 | I56: 15500
A57: Analitikai célú vegyszerek, standardok | B57: Enzimek | C57: 24965000-6 | D57: Trypsin Gold MS minőség | E57: BioScience Kft. | F57: 100 ug | G57: 50000 | H57: 2 | I57: 100000
A58: Analitikai célú vegyszerek, standardok | B58: Nehézvíz, egyéb izotópok és vegyületeik. | C58: 24315100-6 | D58: Deuterált peptid standardok | E58: JPT Peptide Technologies (DE) | F58: 30 nmol | G58: 60000 | H58: 4 | I58: 240000
J59: =SUM(I44:I58) -> 1148462
A61: Analitikumok, detektáló műszerek, automaták vegyszerkészletei
A62: analitikumok, detektáló műszerek, automaták vegyszerkészletei | B62: Szervetlen és szerves alapvegyületek | C62: 24300000-7 | D62: Buffer solution pH 4 | E62: VWR, Merck, Sigma-Aldrich | F62: 500 ml | G62: 2500 | H62: 1 | I62: =G62*H62 -> 2500
A63: analitikumok, detektáló műszerek, automaták vegyszerkészletei | B63: Szervetlen és szerves alapvegyületek | C63: 24300000-7 | D63: Buffer solution pH 7 | E63: VWR, Merck, Sigma-Aldrich | F63: 501 ml | G63: 2500 | H63: 1 | I63: =G63*H63 -> 2500
A64: analitikumok, detektáló műszerek, automaták vegyszerkészletei | B64: Szervetlen és szerves alapvegyületek | C64: 24300000-7 | D64: Buffer solution pH 10 | E64: VWR, Merck, Sigma-Aldrich | F64: 502 ml | G64: 2500 | H64: 1 | I64: =G63*H62 -> 2500
A65: analitikumok, detektáló műszerek, automaták vegyszerkészletei | B65: Laboratóriumi reagensek. | C65: 33696500-0 | D65: BCA Protein Assay Kit | E65: Thermo Fisher, Sigma Aldrich, Merck | F65: 500 ml | G65: 39750 | H65: 1 | I65: 39750
J66: =SUM(I62:I65) -> 47250
A67: Elsődleges és másodlagos antitestek
A68: Elsődleges és másodlagos antitestek | B68: Immunglobulin. | C68: 33651520-9 | D68: Anti-NeuN Antibody, clone A60 (500 µg, tárolás: 2-8 fokon, egér monoclonalis antitest, Purified mouse immunoglobulin IgG1 liquid in buffer containing 0.02 M phosphate buffer, 0.25 M NaCl, pH 7.6 with 0.1% sodium azide. Isotype: IGg1. ) | E68: Biokasztel Kft, Thermofisher, Sigma-Aldrich | F68: 500 μl | G68: 136800 | H68: 1 | I68: =G68*H68 -> 136800
A69: Elsődleges és másodlagos antitestek | B69: Immunglobulin. | C69: 33651520-9 | D69: Super Sensitive™ One-Step Polymer-HRP IHC Detection System /DAB, MEGA Volume | E69: Biomedica Kft. | F69: db | G69: 386835 | H69: 1 | I69: 386835
A70: Elsődleges és másodlagos antitestek | B70: Immunglobulin. | C70: 33651520-9 | D70: Anti Iba1, Rabbit (for Immunocytochemistry, specific to microglia and macrophage, but not cross-reactive with neuron and astrocyte) 50μg (100 μl), tárolás: -20 fokon | E70: Wako, Auro-Science, Proteintech Europe | F70: 100 μl | G70: 133300 | H70: 1 | I70: 133300
A71: Elsődleges és másodlagos antitestek | B71: Immunglobulin. | C71: 33651520-9 | D71: Fe65 polyclonal antibody, 100 ug, 1mg/ml-es koncentrációjú, nyúl IgG, polyclonális, elsődleges antitest western blothoz alkamazható, 77 kDa | E71: Thermo Scientific, VWR Kft., Sigma Aldrich | F71: 100 µg | G71: 95200 | H71: 1 | I71: 95200
A72: Elsődleges és másodlagos antitestek | B72: Immunglobulin. | C72: 33651520-9 | D72: Sigma1 rec antitest | E72: Bio-Kasztel Kft., Santa Cruz Biotechnology, Antibody Resource | F72: 1 ml | G72: 91200 | H72: 1 | I72: 91200
A73: Elsődleges és másodlagos antitestek | B73: Immunglobulin. | C73: 33651520-9 | D73: Polyclonal rabbit anti mouse immunoglobulins HRP | E73: Thermo Fisher Sc., Abcam, Kromat Kft. | F73: 2 ml | G73: 75408 | H73: 1 | I73: 75408
A74: Elsődleges és másodlagos antitestek | B74: Immunglobulin. | C74: 33651520-9 | D74: Polyclonal goat anti rabbit immunoglobulins HRP | E74: Thermo Fisher Sc., Abcam, Kromat Kft. | F74: 1 ml | G74: 66336 | H74: 1 | I74: 66336
J75: =SUM(I68:I74) -> 985079
A77: Enzimekkel kapcsolt szekunder rendszerek (ELISA, enzimreakción alapuló detektáló kit-ek)
A78: Enzimekkel kapcsolt szekunder rendszerek (ELISA, enzimreakción alapuló detektáló kit-ek) | B78: Enzimek. | C78: 24965000-6 | D78: Caspase 3 Assay Kit, Colorimetric, Kaszpáz 3 enzim aktivitást sejttenyészeten vagy sejtlizátumból, fluoreszcensen mérő kit. Ac-DEVD-AMC szubsztrárot hidrolizálja a kaszpáz 3 enzim. A keletkező AMC ex: 360nm em:460 nm-en mérhető. Elegendő 1000 teszthez 96-os plate-n | E78: Sigma Aldrich | F78: kit | G78: 297600 | H78: 1 | I78: =G78*H78 -> 297600
A79: Enzimekkel kapcsolt szekunder rendszerek (ELISA, enzimreakción alapuló detektáló kit-ek) | B79: Különleges célú vegyipari termékek. | C79: 24950000-8 | D79: BCA Protein Assay Kit | E79: Thermo Fisher, Sigma Aldrich, Merck | F79: 500 ml | G79: 39750 | H79: 1 | I79: =G79*H79 -> 39750
A80: Enzimekkel kapcsolt szekunder rendszerek (ELISA, enzimreakción alapuló detektáló kit-ek) | B80: Különleges célú vegyipari termékek. | C80: 24950000-8 | D80: Proteáz inhibitor koktél, emlős sejt és szövet extraktumhoz adható, DMSO oldatban, tartalmaz: AEBSF, Aprotinin, Bestatin, E-64, Leupeptin, Pepstatin A-t | E80: Sigma Aldrich, Promega Corporation, Abcam | F80: 1 ml | G80: 28830 | H80: 1 | I80: =G80*H80 -> 28830
J81: =SUM(I78:I80) -> 366180
A83: Immunhisztokémiai munkákhoz szükséges anyagok
A84: Immunhisztokémiai munkákhoz szükséges anyagok | B84: Diolok, polialkoholok és származékaik. | C84: 24322300-0 | D84: polivinil alkohol - (kiszerelés: 500 g, por, Mol tömeg: Mw 89,000-98,000 ) | E84: Sigma-Aldrich, VWR Kft., Reanal Labor | F84: 500 g | G84: 70000 | H84: 1 | I84: =G84*H84 -> 70000
A85: Immunhisztokémiai munkákhoz szükséges anyagok | B85: Különleges célú vegyipari termékek. | C85: 24950000-8 | D85: DPX fedőanyag mikroszkópiához (gyorsan száradó fedőanyag metszetekhez, színtelen, alacsony viszkozitású, 500 ml) | E85: Sigma-Aldrich, Merck-Millipore, Summamed Kft | F85: 2 üveg | G85: 20263 | H85: 2 | I85: 40526
A86: Immunhisztokémiai munkákhoz szükséges anyagok | B86: Peptonok és proteinanyagok. | C86: 24956000-0 | D86: NGS (normal goat serum, kiszerelés: 10 ml, tárolás: (-2)-(-8) fok ) | E86: Sigma-Aldrich, Thermofisher, Abcam | F86: 10 ml | G86: 31000 | H86: 10 | I86: 310000
A87: Immunhisztokémiai munkákhoz szükséges anyagok | B87: Laboratóriumi, optikai és precíziós felszerelések | C87: 38000000-5 | D87: PAP pen, 2 mm tip width | E87: Sigma-Aldrich, Abcam, Thermofisher | F87: db | G87: 45000 | H87: 2 | I87: 90000
A88: Immunhisztokémiai munkákhoz szükséges anyagok | B88: Peptonok és proteinanyagok. | C88: 24956000-0 | D88: Albumin, from bovine serum | E88: VWR Kft., Sigma Aldrich, Thermo Fisher Scientific | F88: 100 g | G88: 78302 | H88: 1 | I88: =G88*H88 -> 78302
J89: =SUM(I84:I88) -> 588828
A91: Izoláló és egyéb kit-ek amelyek bármilyen enzim komponenst tartalmaznak
A92: Izoláló és egyéb kit-ek amelyek bármilyen enzim komponenst tartalmaznak | B92: Különleges célú vegyipari termékek. | C92: 24950000-8 | D92: High-Speed Plasmid mini kit, 30 ug plazmid tisztításához,300 reakcióhoz elég. Tartalmazza PD1, PD2, PD3, W1, Wash és Elution (10 mM Tris-HCl, pH8.5 at 25°C) puffereket, RNÁz A-t PD oszlopokat és 2 ml-es csöveket. | E92: Geneaid, ThermoFisher Scientific, Sigma Aldrich | F92: kit | G92: 56325 | H92: 2 | I92: =G92*H92 -> 112650
J93: =SUM(I92) -> 112650
A95: Kisérleti állatok
A96: Kísérleti állat | D96: c57/bl6 | E96: SZBK | F96: db | G96: 7000 | H96: 20 | I96: =G96*H96 -> 140000
J97: =SUM(I96) -> 140000
A99: Kromatográfiás oszlopok, töltetek
A100: Kromatográfiás oszlopok, töltetek | B100: Laboratóriumi, optikai és precíziós felszerelések | C100: 38000000-5 | D100: Phenomenex Luna C18(2) HPLC oszlop, Méret: 250*4,6mm, szemcseméret (μm): 5, Pórusátmérő (Å)m 100, P.no:00G-4252-E0 | E100: Gen-lab Kft. | F100: db | G100: 203344 | H100: 2 | I100: =G100*H100 -> 406688
A101: Kromatográfiás oszlopok, töltetek | B101: Laboratóriumi, optikai és precíziós felszerelések | C101: 38000000-5 | D101: Phenomenex Jupiter C18 HPLC oszlop, Méret: 250*4,6mm, szemcseméret (μm): 5, Pórusátmérő (Å)m 300, P.no: 00G-4053-E0 | E101: Gen-lab Kft. | F101: db | G101: 199488 | H101: 1 | I101: 199488
A102: Kromatográfiás oszlopok, töltetek | B102: Laboratóriumi, optikai és precíziós felszerelések | C102: 38000000-5 | D102: Phenomenex Jupiter C4 HPLC oszlop, Méret: 250*4,6mm, szemcseméret (μm): 5, Pórusátmérő (Å)m 300, P.no: 00G-4167-E0 | E102: Gen-lab Kft. | F102: db | G102: 199488 | H102: 1 | I102: 199488
A103: Kromatográfiás oszlopok, töltetek | B103: Laboratóriumi, optikai és precíziós felszerelések | C103: 38000000-5 | D103: Phenomenex Luna C18 HPLC oszlop, Méret: 250*10mm, szemcseméret (μm): 5, Pórusátmérő (Å)m 100, P.no:00G-4252-N0 | E103: Gen-lab Kft. | F103: db | G103: 490933 | H103: 2 | I103: 981866
A104: Kromatográfiás oszlopok, töltetek | B104: Laboratóriumi, optikai és precíziós felszerelések | C104: 38000000-5 | D104: Phenomenex Jupiter C18 HPLC oszlop, Méret: 250*10mm, szemcseméret (μm):10, Pórusátmérő (Å)m 300, P.no: 00G-4055-E0 | E104: Gen-lab Kft. | F104: db | G104: 340200 | H104: 1 | I104: 340200
A105: Kromatográfiás oszlopok, töltetek | B105: Laboratóriumi, optikai és precíziós felszerelések | C105: 38000000-5 | D105: Phenomenex Jupiter C4 HPLC oszlop, Méret: 250*10mm, szemcseméret (μm): 10, Pórusátmérő (Å)m 300, P.no: 00G-4168-N0 | E105: Gen-lab Kft. | F105: db | G105: 340200 | H105: 1 | I105: 340200
A106: Kromatográfiás oszlopok, töltetek | B106: Laboratóriumi, optikai és precíziós felszerelések | C106: 38000000-5 | D106: Phenomenex Luna C18(2) HPLC oszlop, Méret: 250*21.2 mm, szemcseméret (μm): 5, Pórusátmérő (Å)m 100, P.no: 00G-4252-P0-AX | E106: Gen-lab Kft. | F106: db | G106: 882653 | H106: 1 | I106: 882653
A107: Kromatográfiás oszlopok, töltetek | B107: Laboratóriumi, optikai és precíziós felszerelések | C107: 38000000-5 | D107: Phenomenex Luna C18(2) HPLC oszlop, Méret: 250*21.2 mm, szemcseméret (μm): 10, Pórusátmérő (Å)m 100, P.no: 00G-4253-P0-AX | E107: Gen-lab Kft. | F107: db | G107: 873423 | H107: 1 | I107: 873423
A108: Kromatográfiás oszlopok, töltetek | B108: Laboratóriumi, optikai és precíziós felszerelések | C108: 38000000-5 | D108: Phenomenex Jupiter C18 HPLC oszlop, Méret: 250*21.2 mm, szemcseméret (μm):10, Pórusátmérő (Å)m 300, P.no: 00G-4055-P0 | E108: Gen-lab Kft. | F108: db | G108: 693000 | H108: 1 | I108: 693000
A109: Kromatográfiás oszlopok, töltetek | B109: Laboratóriumi, optikai és precíziós felszerelések | C109: 38000000-5 | D109: Phenomenex Jupiter C4 HPLC oszlop, Méret: 250*21.2 mm, szemcseméret (μm): 10, Pórusátmérő (Å)m 300, P.no: 00G-4168-P0 | E109: Gen-lab Kft. | F109: db | G109: 693000 | H109: 1 | I109: 693000
A110: Kromatográfiás oszlopok, töltetek | B110: Laboratóriumi, optikai és precíziós felszerelések | C110: 38000000-5 | D110: Sephadex ® G50-fine | E110: Sigma-Aldrich, GE Healthcare Science, Santa-Cruz Biotechnology Inc. | F110: 50 g | G110: 85000 | H110: 1 | I110: =G110*H110 -> 85000
A111: Kromatográfiás oszlopok, töltetek | B111: Laboratóriumi, optikai és precíziós felszerelések | C111: 38000000-5 | D111: Luna Omega Polar 50x2,1mm ( 1,6um) | E111: Gen-lab Kft. | F111: db | G111: 200000 | H111: 1 | I111: =G111*H111 -> 200000
A112: Kromatográfiás oszlopok, töltetek | B112: Laboratóriumi, optikai és precíziós felszerelések | C112: 38000000-5 | D112: Luna PS 1,6um 50x2,1mm | G112: 200000 | H112: 1 | I112: =G112*H112 -> 200000
J113: =SUM(I100:I112) -> 6095006
A115: Laboratóriumi fém és üvegáru
A116: Laboratóriumi fém és üvegáru | B116: 33912100-7 | C116: Bonccsipesz | D116: Hajlított végű csipesz, Nem fogazott, 110 mm hosszú, rozsdamentes acél, EMS part no: 783183CB | E116: Fisher Sc., Electron Microscopy Sciences, Thomas Scientific | F116: db | G116: 7410 | H116: 2 | I116: =G116*H116 -> 14820
A117: Laboratóriumi fém és üvegáru | B117: 38437000-7 | C117: Laboratóriumi pipetták és tartozékok. | D117: üveg pasteur pipetta (150 mm, szódaüvegből készült) | E117: Labsystem Kft., Bovimex Kft., Labornite Kft. | F117: doboz (25 db) | G117: 5000 | H117: 1 | I117: =G117*H117 -> 5000
A118: Laboratóriumi üvegáru | B118: Laboratóriumi üvegáru | C118: 33793000-5 | D118: lombik 25 ml | E118: VWR, Gen-Lab, Labex, Sigma Aldrich | F118: 2 db doboz | G118: 7200 | H118: 1 | I118: =G118*H118 -> 7200
A119: Laboratóriumi üvegáru | B119: Laboratóriumi üvegáru | C119: 33793000-5 | D119: 1,5 mL Menetes (9mm) mintatartó üveg (11,6x32 mm) széles szájjal | E119: LAB-EX Kft., ViaLab Kft., VWR | F119: 100 db/csomag | G119: 1500 | H119: 30 | I119: =G119*H119 -> 45000
A120: Laboratóriumi üvegáru | B120: Laboratóriumi üvegáru | C120: 33793000-5 | D120: 9 mm Kupak PTFE/fehér szilikon szeptummal | E120: LAB-EX Kft., ViaLab Kft., VWR | F120: 100 db/csomag | G120: 2300 | H120: 50 | I120: 115000
A121: Laboratóriumi üvegáru | B121: Laboratóriumi üvegáru | C121: 33793000-5 | D121: Mikrobetét széles szájú mintatartóhoz 300 ul, 31x6mm, lapos aljú | E121: LAB-EX Kft., ViaLab Kft., VWR | F121: 100 db/csomag | G121: 2000 | H121: 30 | I121: 60000
A122: Laboratóriumi üvegáru | B122: Laboratóriumi üvegáru | C122: 33793000-5 | D122: Mikrobetét széles szájú mintatartóhoz 31,5x5.8mm, kúpos aljú | E122: LAB-EX Kft., ViaLab Kft., VWR | F122: 100 db/csomag | G122: 3300 | H122: 50 | I122: 165000
A123: Laboratóriumi üvegáru | B123: Laboratóriumi üvegáru | C123: 33793000-5 | D123: Mikrobetét széles szájú mintatartóhoz, 29x5,7 mm átlátszó, polimer lábbal | E123: LAB-EX Kft., ViaLab Kft., VWR | F123: 100 db/csomag | G123: 4000 | H123: 10 | I123: 40000
A124: Laboratóriumi üvegáru | B124: Laboratóriumi üvegáru | C124: 33793000-5 | D124: 4 mL Menetes (13mm) mintatartó üveg (14,7x 45mm) | E124: LAB-EX Kft., ViaLab Kft., VWR | F124: 100 db/csomag | G124: 2200 | H124: 10 | I124: 22000
A125: Laboratóriumi üvegáru | B125: Laboratóriumi üvegáru | C125: 33793000-5 | D125: 13 mm Kupak (zárt) natúr PTFE/natúr szilikon szeptummal | E125: LAB-EX Kft., ViaLab Kft., VWR | F125: 100 db/csomag | G125: 2700 | H125: 10 | I125: 27000
A126: Laboratóriumi üvegáru | B126: Laboratóriumi üvegáru | C126: 33793000-5 | D126: 8 mL menetes (15mm) szintelen mintatartó üveg (61x16,6 mm) | E126: LAB-EX Kft., ViaLab Kft., VWR | F126: 100 db/csomag | G126: 3000 | H126: 3 | I126: 9000
A127: Laboratóriumi üvegáru | B127: Laboratóriumi üvegáru | C127: 33793000-5 | D127: 15 mm Kupak (zárt) fehér PTFE/piros szilikon szeptummal | E127: LAB-EX Kft., ViaLab Kft., VWR | F127: 100 db/csomag | G127: 3200 | H127: 3 | I127: 9600
A128: Laboratóriumi üvegáru | B128: Laboratóriumi üvegáru | C128: 33793000-5 | D128: Főzőpohár 1000 ml alacsony | E128: VWR, AA labor, LabSystem | F128: 10 db/csomag | G128: 13300 | H128: 1 | I128: 13300
A129: Laboratóriumi üvegáru | B129: Laboratóriumi üvegáru | C129: 33793000-5 | D129: Főzőpohár 600 ml magas | E129: VWR, AA labor, LabSystem | F129: 10 db/csomag | G129: 8400 | H129: 1 | I129: 8400
A130: Laboratóriumi üvegáru | B130: Laboratóriumi üvegáru | C130: 33793000-5 | D130: Főzőpohár 250 ml magas | E130: VWR, AA labor, LabSystem | F130: 10 db/csomag | G130: 5400 | H130: 1 | I130: 5400
A131: Laboratóriumi üvegáru | B131: Laboratóriumi üvegáru | C131: 33793000-5 | D131: Boroszilikát üveg, csavaros PP kupakkal 100 ml | E131: VWR, AA labor, LabSystem | F131: 10 db/csomag | G131: 5800 | H131: 1 | I131: 5800
A132: Laboratóriumi üvegáru | B132: Laboratóriumi üvegáru | C132: 33793000-5 | D132: Boroszilikát üveg, csavaros PP kupakkal 250 ml | E132: VWR, AA labor, LabSystem | F132: 10 db/csomag | G132: 6600 | H132: 1 | I132: 6600
A133: Laboratóriumi üvegáru | B133: Laboratóriumi üvegáru | C133: 33793000-5 | D133: Boroszilikát üveg, csavaros PP kupakkal 500 ml | E133: VWR, AA labor, LabSystem | F133: 10 db/csomag | G133: 8200 | H133: 1 | I133: 8200
J134: =SUM(I116:I133) -> 567320
A135: Laboratóriumi gumiáru és védőfelszerelések
A136: Laboratóriumi gumiáru és védőfelszerelések | B136: Eldobható gumikesztűk | C136: 18424300-0 | D136: Sempercare púdermentes latex keszytű S-es méretben | E136: USUS Kft., Roli-Dent Kft., Creativ Dental fogaszati kereskedés és szerviz | F136: doboz (100 db) | G136: 1200 | H136: 1 | I136: =G136*H136 -> 1200
A137: Laboratóriumi gumiáru és védőfelszerelések | B137: Eldobható gumikesztűk | C137: 18424300-0 | D137: Sempercare púdermentes latex keszytű M-es méretben | E137: USUS Kft., Roli-Dent Kft., Creativ Dental fogaszati kereskedés és szerviz | F137: doboz (100 db) | G137: 1200 | H137: 5 | I137: 6000
A138: Laboratóriumi gumiáru és védőfelszerelések | B138: Eldobható gumikesztűk | C138: 18424300-0 | D138: Nitril kesztyű púdermentes Xpert M-es méret | E138: USUS Kft., Bio-Science Kft., T -Medical | F138: doboz (100 db) | G138: 1900 | H138: 3 | I138: 5700
A139: Laboratóriumi gumiáru és védőfelszerelések | B139: Laboratóriumi pipetták és tartozékok. | C139: 38437000-7 | D139: pipettalabda (szilikon) üveg pasteur pipettához | E139: Labsystem Kft., Scarlabmagyarorszag Kft., aalabor Kft. | F139: 1 db | G139: 500 | H139: 10 | I139: =G139*H139 -> 5000
A140: Laboratóriumi gumiáru és védőfelszerelések | B140: Eldobható gumikesztűk | C140: 18424300-0 | D140: gumikesztyű | E140: VWR, Gen-Lab, Labex, Sigma Aldrich | F140: 100 db/csomag | G140: 3000 | H140: 2 | I140: =G140*H140 -> 6000
A141: Laboratóriumi gumiáru és védőfelszerelések | B141: Eldobható gumikesztűk | C141: 18424300-0 | D141: Púdermentes gumikesztyű S méretű | E141: USUS Kft., Roli-Dent Kft., Creativ Dental fogaszati kereskedés és szerviz | F141: 100 db/csomag | G141: 1200 | H141: 5 | I141: =G141*H141 -> 6000
A142: Laboratóriumi gumiáru és védőfelszerelések | B142: Eldobható gumikesztűk | C142: 18424300-0 | D142: Púdermentes gumikesztyű M méretű | E142: USUS Kft., Roli-Dent Kft., Creativ Dental fogaszati kereskedés és szerviz | F142: 100 db/csomag | G142: 1200 | H142: 5 | I142: =G142*H142 -> 6000
A143: Laboratóriumi gumiáru és védőfelszerelések | B143: Eldobható gumikesztűk | C143: 18424300-0 | D143: Púdermentes gumikesztyű L méretű | E143: USUS Kft., Roli-Dent Kft., Creativ Dental fogaszati kereskedés és szerviz | F143: 100 db/csomag | G143: 1200 | H143: 5 | I143: =G143*H143 -> 6000
J144: =SUM(I136:I143) -> 41900
A146: Laboratóriumi műanyag áru
A147: Laboratóriumi műanyag áru | B147: Műanyag termékek | C147: 19520000-7 | D147: Whatman Anotop 10 fecskendőszűrő, nem steril, 0,02 um pórusméretű, 1 cm átmérőjű, PP borítású | E147: VWR Kft, Sigma Aldrich, GE Healthcare’s Life Sciences, | F147: 50 db/doboz | G147: 140400 | H147: 1 | I147: =G147*H147 -> 140400
A148: Laboratóriumi műanyag áru | B148: Műanyag termékek | C148: 19520000-7 | D148: Whatman Puradisc 4 mm Nylon Syringe Filter, 0.45 µm, PP, Gyártói szám: 6789-0404 | E148: VWR Kft., Sigma Aldrich, Thermo Fisher Scientific | F148: doboz (100 db) | G148: 43620 | H148: 1 | I148: =G148*H148 -> 43620
A149: Laboratóriumi műanyag áru | B149: Műanyag termékek | C149: 19520000-7 | D149: 50ml-es PP centrifugacső, talpas, lila zárókupakkal, beosztással. 9400*g RCF (50*10 db) | E149: VWR Kft., Aalabor, Sigma Aldrich | F149: 500 db/csomag | G149: 54950 | H149: 1 | I149: =G149*H149 -> 54950
A150: Laboratóriumi műanyag áru | B150: Műanyag termékek | C150: 19520000-7 | D150: 50ml-es PP centrifugacső, kúpos, steril, lila zárókupakkal, beosztással. 20000*g RCF (50*10 db) | E150: VWR Kft., Aalabor, Sigma Aldrich | F150: 500 db/csomag | G150: 45150 | H150: 1 | I150: =G150*H150 -> 45150
A151: Laboratóriumi műanyag áru | B151: Pipetta hegy | C151: 38437110-1 | D151: 1-5 ml pipettahegy - Eppendorf | E151: Labsystem Kft., VWR, Dialab Kft. | F151: csomag (500 db) | G151: 8000 | H151: 1 | I151: =G151*H151 -> 8000
A152: Laboratóriumi műanyag áru | B152: Pipetta hegy | C152: 38437110-1 | D152: 100-1000 ul pipettahegy - Eppendorf | E152: Labsystem Kft., VWR, Dialab Kft. | F152: csomag (1000 db) | G152: 8000 | H152: 1 | I152: 8000
A153: Laboratóriumi műanyag áru | B153: Pipetta hegy | C153: 38437110-1 | D153: 2-200 ul pipettahegy - Eppendorf | E153: Labsystem Kft., VWR, Dialab Kft. | F153: csomag (1000 db) | G153: 8000 | H153: 4 | I153: 32000
A154: Laboratóriumi műanyag áru | B154: Pipetta hegy | C154: 38437110-1 | D154: 0.2-20 ul pipettahegy - Eppendorf | E154: Labsystem Kft., VWR, Dialab Kft. | F154: csomag (1000 db) | G154: 8000 | H154: 1 | I154: 8000
A155: Laboratóriumi műanyag áru | B155: Pipetta hegy | C155: 38437110-1 | D155: Pipettahegy standard 200ul öml. 1000db | E155: VWR, Labsystem Kft., Dialab Kft. | F155: csomag (1000 db) | G155: 8240 | H155: 3 | I155: 24720
A156: Laboratóriumi műanyag áru | B156: Pipetta hegy | C156: 38437110-1 | D156: Pipettahegy 50-1000ul ömlesztett 2X500db, kék, 71mm hosszú hegy - Eppendorf | E156: VWR, Labsystem Kft., Dialab Kft. | F156: csomag (1000 db) | G156: 12300 | H156: 3 | I156: 36900
A157: Laboratóriumi műanyag áru | B157: Pipetta hegy | C157: 38437110-1 | D157: 100 - 1000 ul, Ömlesztett 1.000db | E157: VWR, Labsystem Kft., Dialab Kft. | F157: csomag (1000 db) | G157: 6965 | H157: 3 | I157: 20895
A158: Laboratóriumi műanyag áru | B158: Pipetta hegy | C158: 38437110-1 | D158: 0,1 - 20 ul pipettahegy , 40 mm hosszú | E158: VWR, Labsystem Kft., Dialab Kft. | F158: csomag (1000 db) | G158: 17910 | H158: 1 | I158: 17910
A159: Laboratóriumi műanyag áru | B159: Pipetta hegy | C159: 38437110-1 | D159: 0.2 ml Eppendorf | E159: Labsystem Kft., VWR, Dialab Kft. | F159: csomag (500 db) | G159: 3500 | H159: 1 | I159: 3500
A160: Laboratóriumi műanyag áru | B160: Pipetta hegy | C160: 38437110-1 | D160: 2 ml Eppendorf | E160: Labsystem Kft., VWR, Dialab Kft. | F160: csomag (500 db) | G160: 3500 | H160: 1 | I160: 3500
A161: Laboratóriumi műanyag áru | B161: Műanyag termékek | C161: 19520000-7 | D161: centrifugacső csavaros kupakkal (15 ml, steril. A cső anyaga: polipropilén (PP), a kupak anyaga: polietilén (PE)). | E161: Labsystem Kft., Scarlabmagyarorszag Kft., aalabor Kft. | F161: zsák (100 db) | G161: 3000 | H161: 2 | I161: 6000
A162: Laboratóriumi műanyag áru | B162: Műanyag termékek | C162: 19520000-7 | D162: Sejtszámlálóhoz lemez, Juli Br Cell Counting Slide (Countess sejtszámlálóhoz használható lemez) | E162: NanoEnTek, VWR, ThermoFisher Scientific, Cambridge Bioscience Ltd. | F162: doboz (50 db) | G162: 18113 | H162: 1 | I162: 18113
A163: Laboratóriumi műanyag áru | B163: Műanyag termékek | C163: 19520000-7 | D163: 6 well/plate - Corning® Costar® cell culture plates, Sejttenyésztéshez alkalmas, steril, átlásztó, polisztirol, egyesével csomagolt, nem felületkezelt, wellek alja egyenes,fedővel rendelkező 6 well/plate. | E163: Sigma Aldrich, Fisher Scientific, VWR Kft. | F163: csomag (100 db) | G163: 70860 | H163: 1 | I163: 70860
A164: Laboratóriumi műanyag áru | B164: Műanyag termékek | C164: 19520000-7 | D164: Fagyasztócső (cryovial), 1 vagy 2 ml-es talppal és külső csavarmenetes kupakkal rendelkező, steril fagyasztócső, -80 fokon tárolható. | E164: VWR Kft., Labsystem Kft., Dialab Kft. | F164: doboz (1000 db) | G164: 59710 | H164: 1 | I164: =G164*H164 -> 59710
A165: Laboratóriumi műanyag áru | B165: Laboratóriumi, optikai és precíziós felszerelések | C165: 38000000-5 | D165: Millex-HA szűrő 0.45 um pórusú (SLHA025NB kódszám) | E165: Sigma-Aldrich, Millipore Inc., Biocompare Inc., | F165: 250 db | G165: 90000 | H165: 1 | I165: 90000
A166: Laboratóriumi műanyag áru | B166: Laboratóriumi, optikai és precíziós felszerelések | C166: 38000000-5 | D166: Avanti lipids polycharbonate membrane filter (pore size: 0.05 um) | E166: Avanti Lipids Inc., Fisher Scientific, Sigma-Aldrich | F166: 100 db / csomag | G166: 60000 | H166: 2 | I166: 120000
A167: Laboratóriumi műanyag áru | B167: Laboratóriumi, optikai és precíziós felszerelések | C167: 38000000-5 | D167: Avanti lipids polycharbonate membrane filter (pore size: 0.1 um) | E167: Avanti Lipids Inc., Fisher Scientific, Sigma-Aldrich | F167: 100 db / csomag | G167: 55000 | H167: 2 | I167: 110000
A168: Laboratóriumi műanyag áru | D168: PARAFILM zárófólia, szélesség: 100 mm, hossz: 75 m | E168: VWR International Kft., AA Labor Kft., Reanal Laborvegyszer Kft. | F168: 1 tekercs | G168: 21960 | H168: 3 | I168: 65880
A169: Laboratóriumi műanyagáru | B169: Műanyag termékek | C169: 19520000-7 | D169: Mikrocentrifugacső 1,5 mL, szintelen, nem steril | E169: Biocenter Kft., LabSystem Kft., AA Labor | F169: 1000db/csomag | G169: 4000 | H169: 5 | I169: 20000
A170: Laboratóriumi műanyagáru | B170: Műanyag termékek | C170: 19520000-7 | D170: Mikrocentrifugacső 0,5 mL | E170: Biocenter Kft., LabSystem Kft., AA Labor | F170: 1000db/csomag | G170: 3000 | H170: 8 | I170: 24000
A171: Laboratóriumi műanyagáru | B171: Műanyag termékek | C171: 19520000-7 | D171: PP Centrifugacső 15 ml, csavaros, kónikus, RNase, Dnase, pyrogen free | E171: Biocenter Kft., LabSystem Kft., AA Labor | F171: 500 db/ csomag | G171: 6000 | H171: 4 | I171: 24000
A172: Laboratóriumi műanyagáru | B172: Műanyag termékek | C172: 19520000-7 | D172: PP Centrifugacső 50 ml, csavaros, kónikus, RNase, Dnase, pyrogen free | E172: Biocenter Kft., LabSystem Kft., AA Labor | F172: 500 db/ csomag | G172: 7000 | H172: 2 | I172: 14000
A173: Laboratóriumi műanyagáru | B173: Pipetta hegy | C173: 38437110-1 | D173: Ultra-Low Retention pipetta hegy 0,1-10 ul | E173: Biocenter Kft. | F173: 1000db/csomag | G173: 3200 | H173: 5 | I173: 16000
A174: Laboratóriumi műanyagáru | B174: Pipetta hegy | C174: 38437110-1 | D174: Ultra-Low Retention pipetta hegy 200 ul | E174: Biocenter Kft. | F174: 1000db/csomag | G174: 2700 | H174: 5 | I174: 13500
A175: Laboratóriumi műanyagáru | B175: Pipetta hegy | C175: 38437110-1 | D175: Ultra-Low Retention pipetta hegy 1000 ul | E175: Biocenter Kft. | F175: 1000db/csomag | G175: 3100 | H175: 3 | I175: 9300
J176: =SUM(I147:I175) -> 1108908
A178: Laboratóriumi papíráru
A179: Laboratóriumi papíráru | B179: Papíráruk | C179: 30192700-8 | D179: Nitrocellulóz membrán western blothoz, 0.2 um pórusú, roll, 200 mm x 4m méretű | E179: Sigma Aldrich, VWR Kft., ThermoFisher | F179: db | G179: 69900 | H179: 1 | I179: =G179*H179 -> 69900
A180: Laboratóriumi papíráru | B180: Papíráruk | C180: 30192700-8 | D180: Gel-blotting paper, 20 x 20 cm, 25/pk, 1.5 mm vastagságú | E180: Sigma Aldrich, VWR Kft., Bio-Rad | F180: csomag (25 db) | G180: 27150 | H180: 1 | I180: 27150
A181: Laboratóriumi papíráru | B181: szűrőpapír | C181: 15994200-4 | D181: Redős kvalitatív szűrőpapír általános laboratóriumi munkához, átmérő: 125 mm | E181: VWR International Kft., Reanal Laborvegyszer Kft., Szkarabeusz Laboratóriumi Kft. | F181: 100 db/csomag | G181: 10000 | H181: 10 | I181: 100000
A182: Laboratóriumi papíráru | B182: szűrőpapír | C182: 15994200-4 | D182: Redős kvalitatív szűrőpapír általános laboratóriumi munkához, átmérő: 150 mm | E182: VWR International Kft., Reanal Laborvegyszer Kft., Szkarabeusz Laboratóriumi Kft. | F182: 100 db/csomag | G182: 10000 | H182: 10 | I182: 100000
A183: Laboratóriumi papíráru | B183: szűrőpapír | C183: 15994200-4 | D183: Redős kvalitatív szűrőpapír általános laboratóriumi munkához, átmérő: 185 mm | E183: VWR International Kft., Reanal Laborvegyszer Kft., Szkarabeusz Laboratóriumi Kft. | F183: 100 db/csomag | G183: 8000 | H183: 8 | I183: 64000
A184: Laboratóriumi papíráru | B184: szűrőpapír | C184: 15994200-4 | D184: Redős kvalitatív szűrőpapír általános laboratóriumi munkához, átmérő: 240 mm | E184: VWR International Kft., Reanal Laborvegyszer Kft., Szkarabeusz Laboratóriumi Kft. | F184: 100 db/csomag | G184: 11500 | H184: 6 | I184: 69000
J185: =SUM(I179:I184) -> 430050
A187: Műszeralkatrészek
A188: Kromatográfiás alkatrészek | B188: Egyéb gépek alkatrészei. | C188: 42950000-0 | D188: Shimadzu LC-10ADvp pumpához GFP Plunger Seal, Part No: 228-35146-00 | E188: Simkon Kft. | F188: db | G188: =109.27*309 -> 33764.43 | H188: 4 | I188: =G188*H188 -> 135057.72
A189: Kromatográfiás alkatrészek | B189: Egyéb gépek alkatrészei. | C189: 42950000-0 | D189: TEFLON DIAPHRAGM (2PCS) Shimadzu LC-10ADvp pumpához, Part No: 228-32784-91 | E189: Simkon Kft. | F189: csomag | G189: =183.01*309 -> 56550.09 | H189: 2 | I189: 113100.18
A190: Kromatográfiás alkatrészek | B190: Egyéb gépek alkatrészei. | C190: 42950000-0 | D190: Filter of mixer, Shimadzu LC-10ADvp pumpához, Part No: 228-18872-91 | E190: Simkon Kft. | F190: db | G190: =12.39*309 -> 3828.51 | H190: 2 | I190: 7657.02
A191: Kromatográfiás alkatrészek | B191: Egyéb gépek alkatrészei. | C191: 42950000-0 | D191: Inlet check valve in Assy Shimadzu LC-10ADvp modulhoz, Part No: 228-39093-92 | E191: Simkon Kft. | F191: db | G191: =148.26*309 -> 45812.34 | H191: 2 | I191: 91624.68
A192: Kromatográfiás alkatrészek | B192: Egyéb gépek alkatrészei. | C192: 42950000-0 | D192: CHECK VALVE OUT ASSY,VP, Shimadzu LC-10ADvp modulhoz, Part No: 228-34976-91 | E192: Simkon Kft. | F192: db | G192: =171.5*309 -> 52993.5 | H192: 2 | I192: 105987
A193: Kromatográfiás alkatrészek | B193: Egyéb gépek alkatrészei. | C193: 42950000-0 | D193: PARFULO O-RING P5, Shimadzu LC-10ADvp modulhoz, Part No: 670-11518-00 | E193: Simkon Kft. | F193: db | G193: =19.16*309 -> 5920.44 | H193: 2 | I193: 11840.88
A194: Kromatográfiás alkatrészek | B194: Egyéb gépek alkatrészei. | C194: 42950000-0 | D194: FUSE 1.0A/T/250V; 5.2X20, Shimadzu LC-10ADvp modulhoz, Part No: 072-02004-16 | E194: Simkon Kft. | F194: db | G194: =6.3*309 -> 1946.7 | H194: 4 | I194: 7786.8
A195: Kromatográfiás alkatrészek | B195: Egyéb gépek alkatrészei. | C195: 42950000-0 | D195: FUSE 3.15A/T/250V; 5.2X20, Shimadzu LC-10ADvp modulhoz, Part No: 072-02004-21 | E195: Simkon Kft. | F195: db | G195: =2.89*309 -> 893.01 | H195: 6 | I195: 5358.06
A196: Kromatográfiás alkatrészek | B196: Egyéb gépek alkatrészei. | C196: 42950000-0 | D196: FUSE 5A/T/250V; 5.2X20, Shimadzu LC-10ADvp modulhoz, Part No: 072-02004-23 | E196: Simkon Kft. | F196: db | G196: =2.89*309 -> 893.01 | H196: 4 | I196: 3572.04
A197: Kromatográfiás alkatrészek | B197: Egyéb gépek alkatrészei. | C197: 42950000-0 | D197: LOW PRESSURE GRADIENT UNIT, Shimadzu LC-10ADvp modulhoz, Part No: 228-45040-58 | E197: Simkon Kft. | F197: db | G197: =309*1150.62 -> 355541.58 | H197: 1 | I197: 355541.58
A198: Kromatográfiás alkatrészek | B198: Egyéb gépek alkatrészei. | C198: 42950000-0 | D198: Check valve in IN-SPB D1.588 REV, Shimadzu LC-10ADvp modulhoz, Part No: 228-48249-96 | E198: Simkon Kft. | F198: db | G198: =309*297.3 -> 91865.7 | H198: 2 | I198: 183731.4
A199: Kromatográfiás alkatrészek | B199: Egyéb gépek alkatrészei. | C199: 42950000-0 | D199: Check Valve OUT, Shimadzu LC-10ADvp modulhoz, Part No: 228-45705-91 | E199: Simkon Kft. | F199: db | G199: =314.78*309 -> 97267.02 | H199: 2 | I199: 194534.04
A200: Kromatográfiás alkatrészek | B200: Egyéb gépek alkatrészei. | C200: 42950000-0 | D200: Seal Cap Assembly, Part no: 5067-4728 - Agilent | E200: Kromat Kft. | F200: db | G200: 10587 | H200: 2 | I200: 21174
A201: Kromatográfiás alkatrészek | B201: Egyéb gépek alkatrészei. | C201: 42950000-0 | D201: PTFE Frits, Part no: 01018-22707, 5PK - Agilent | E201: Kromat Kft. | F201: 5 db/cs | G201: 11013 | H201: 1 | I201: 11013
A202: Kromatográfiás alkatrészek | B202: Egyéb gépek alkatrészei. | C202: 42950000-0 | D202: Outlet Ball Valve for 1100/1200/1260, Part no: G1312-60067 - Agilent | E202: Kromat Kft. | F202: db | G202: 137700 | H202: 1 | I202: 137700
A203: Kromatográfiás alkatrészek | B203: Egyéb gépek alkatrészei. | C203: 42950000-0 | D203: Sieves (SS) for outlet valve 10/PK, Part no: 5063-6505- Agilent | E203: Kromat Kft. | F203: 10 db/cs | G203: 6009 | H203: 1 | I203: 6009
A204: Kromatográfiás alkatrészek | B204: Egyéb gépek alkatrészei. | C204: 42950000-0 | D204: Cartridge for active inlet valve, Part no: 5062-8562 - Agilent | E204: Kromat Kft. | F204: db | G204: 70200 | H204: 1 | I204: 70200
A205: Kromatográfiás alkatrészek | B205: Egyéb gépek alkatrészei. | C205: 42950000-0 | D205: Plunger seal for 1100 and 1050 2/PK, Part no: 5063-6589 - Agilent | E205: Kromat Kft. | F205: 2 db/cs | G205: 36000 | H205: 1 | I205: 36000
A206: Kromatográfiás alkatrészek | B206: Egyéb gépek alkatrészei. | C206: 42950000-0 | D206: PE-Pump Seal 2/PK, Part no: 0905-1420 - Agilent | E206: Kromat Kft. | F206: 2 db/cs | G206: 48900 | H206: 1 | I206: 48900
A207: Kromatográfiás alkatrészek | B207: Egyéb gépek alkatrészei. | C207: 42950000-0 | D207: Sapphire Plunger for 1100 and 1050, Part no: 5063-6586 - Agilent | E207: Kromat Kft. | F207: db | G207: 48600 | H207: 1 | I207: 48600
A208: Kromatográfiás alkatrészek | B208: Egyéb gépek alkatrészei. | C208: 42950000-0 | D208: MCG Valve Assy, Part no: G1311-67701 - Agilent | E208: Kromat Kft. | F208: db | G208: 594888 | H208: 1 | I208: =G208*H208 -> 594888
A209: UV lámpa - sterilizáláshoz | B209: Egyéb gépek alkatrészei. | C209: 42950000-0 | D209: Uv fénycső, Faster VS-4 195 steril fülkébe, Sankyo Denki G20T10, germicid lámpa | E209: Auro-Science Consulting Kft., SOSLightBulbs, Norman Lamps, Inc. | F209: db | G209: 15000 | H209: 1 | I209: 15000
A210: Műszeralkatrészek | B210: Egyéb gépek alkatrészei. | C210: 42950000-0 | D210: Acquity UPLC pumpa 3VCCPU AHTC vezérlő kártya (700005763) | E210: Waters Kft. | F210: 1 db | G210: 90000 | H210: 1 | I210: 90000
A211: Műszeralkatrészek | B211: Egyéb gépek alkatrészei. | C211: 42950000-0 | D211: Acquity UPLC SM I-Class PEEK Needle kit, 10uL (700005923) | E211: Waters Kft. | F211: 1 db/csomag | G211: 57000 | H211: 2 | I211: 114000
A212: Műszeralkatrészek | B212: Egyéb gépek alkatrészei. | C212: 42950000-0 | D212: Acquity UPLC SM I-Class ASSY, SAMPLE LOOP, 20 ul (430001320) | E212: Waters Kft. | F212: 1 db/csomag | G212: 26000 | H212: 1 | I212: 26000
A213: Műszeralkatrészek | B213: Egyéb gépek alkatrészei. | C213: 42950000-0 | D213: Ferrule Set, 1/16 ID, Two-piece, (700002635) | E213: Waters Kft. | F213: 10 db/csomag | G213: 46000 | H213: 1 | I213: 46000
... 118 more rows
